Body Name,Body,Service Division Label,Service Division Code,Organisational Unit,Expenditure Category,Expenditure Code,CIPFA detailed expediture type,CIPFA detailed expediture code,Narrative,Date,Transaction number,Net Amount,Capital and Revenue,Supplier Name,Supplier ID,,
Chorley Borough Council,http://statistics.data.gov.uk/id/local-authority/30UE,Capital,Capital,GROW - Commercial & Property,Other Capital Related Fees,03024,Capital Expenditure,Capital,Re: Chorley Market Indoor Seating/Cafe area  Produce drawings for tender purposes as per your email 8th February,10/06/2022,0168077,"1,250.00",Capital,3DG Design Ltd,80861,,
Chorley Borough Council,http://statistics.data.gov.uk/id/local-authority/30UE,Central Support Services,1009,GOVN - Policy & Governance,Misc Expenses,40200,Miscellaneous Expenses,5034,Blinds for St Lawrences Church. 3x    86x101 vertical split draw blinds ,17/06/2022,0168229,350.00,Revenue,A B Blinds,17475,,
Chorley Borough Council,http://statistics.data.gov.uk/id/local-authority/30UE,Central Support Services,1009,CUST - Customer & Digital,Telephones - Other,40085,Communication and Computing,5028,Adept Telecoms -  April + May  22,24/06/2022,0166983,"1,806.72",Revenue,Adept Telecom PLC,77452,,
Chorley Borough Council,http://statistics.data.gov.uk/id/local-authority/30UE,Central Support Services,1009,CUST - Customer & Digital,Telephones - Other,40085,Communication and Computing,5028,Adept telecom - June 22,24/06/2022,0167611,"1,810.43",Revenue,Adept Telecom PLC,77452,,
Chorley Borough Council,http://statistics.data.gov.uk/id/local-authority/30UE,Central Support Services,1009,CUST - Customer & Digital,Telephones - Other,40085,Communication and Computing,5028,Adept Telecoms -  April + May  22,24/06/2022,0168425,"1,810.43",Revenue,Adept Telecom PLC,77452,,
Chorley Borough Council,http://statistics.data.gov.uk/id/local-authority/30UE,Service Management & Support,1009,CUST - Customer & Digital,Vehicles and Plant Maintenance,30045,Direct Transport Costs,5016,As per Quotation from NAME REDACTED 20233933 / 24.05.2022,10/06/2022,0167796,470.10,Revenue,Aebi Schmidt UK Ltd,17287,,
Chorley Borough Council,http://statistics.data.gov.uk/id/local-authority/30UE,Unapportionable Central OHeads,1009,CUST - Customer & Digital,Bank Charges,40151,Miscellaneous Expenses,5034,fee,01/06/2022,0168037,10.00,Revenue,Allpay Net Ltd,17242,,
Chorley Borough Council,http://statistics.data.gov.uk/id/local-authority/30UE,Unapportionable Central OHeads,1009,CUST - Customer & Digital,Bank Charges,40151,Miscellaneous Expenses,5034,post office,01/06/2022,0168037,406.64,Revenue,Allpay Net Ltd,17242,,
Chorley Borough Council,http://statistics.data.gov.uk/id/local-authority/30UE,Unapportionable Central OHeads,1009,CUST - Customer & Digital,Bank Charges,40151,Miscellaneous Expenses,5034,paypoint,01/06/2022,0168037,139.94,Revenue,Allpay Net Ltd,17242,,
Chorley Borough Council,http://statistics.data.gov.uk/id/local-authority/30UE,Unapportionable Central OHeads,1009,CUST - Customer & Digital,Bank Charges,40151,Miscellaneous Expenses,5034,webconnect,01/06/2022,0168037,46.00,Revenue,Allpay Net Ltd,17242,,
Chorley Borough Council,http://statistics.data.gov.uk/id/local-authority/30UE,Unapportionable Central OHeads,1009,CUST - Customer & Digital,Bank Charges,40151,Miscellaneous Expenses,5034,fee,17/06/2022,0168269,10.00,Revenue,Allpay Net Ltd,17242,,
Chorley Borough Council,http://statistics.data.gov.uk/id/local-authority/30UE,Unapportionable Central OHeads,1009,CUST - Customer & Digital,Bank Charges,40151,Miscellaneous Expenses,5034,ret charge,17/06/2022,0168269,12.60,Revenue,Allpay Net Ltd,17242,,
Chorley Borough Council,http://statistics.data.gov.uk/id/local-authority/30UE,Unapportionable Central OHeads,1009,CUST - Customer & Digital,Bank Charges,40151,Miscellaneous Expenses,5034,post office,17/06/2022,0168269,586.04,Revenue,Allpay Net Ltd,17242,,
Chorley Borough Council,http://statistics.data.gov.uk/id/local-authority/30UE,Unapportionable Central OHeads,1009,CUST - Customer & Digital,Bank Charges,40151,Miscellaneous Expenses,5034,paypoint,17/06/2022,0168269,194.73,Revenue,Allpay Net Ltd,17242,,
Chorley Borough Council,http://statistics.data.gov.uk/id/local-authority/30UE,Unapportionable Central OHeads,1009,CUST - Customer & Digital,Bank Charges,40151,Miscellaneous Expenses,5034,webconn,17/06/2022,0168269,46.00,Revenue,Allpay Net Ltd,17242,,
Chorley Borough Council,http://statistics.data.gov.uk/id/local-authority/30UE,Central Support Services,1009,EARL - Communities,External Contractor,40198,Miscellaneous Expenses,5034,Rats and Mice Pest Control for Chorley Council,10/06/2022,0167329,"1,627.92",Revenue,ALPHA PEST CONTROL LIMITED,18208,,
Chorley Borough Council,http://statistics.data.gov.uk/id/local-authority/30UE,Central Support Services,1009,EARL - Communities,External Contractor,40198,Miscellaneous Expenses,5034,Rats and Mice Pest Control for Chorley Council,10/06/2022,0167509,698.18,Revenue,ALPHA PEST CONTROL LIMITED,18208,,
Chorley Borough Council,http://statistics.data.gov.uk/id/local-authority/30UE,Central Support Services,1009,EARL - Communities,External Contractor,40198,Miscellaneous Expenses,5034,Rats and Mice Pest Control for Chorley Council,17/06/2022,0168186,"2,496.13",Revenue,ALPHA PEST CONTROL LIMITED,18208,,
Chorley Borough Council,http://statistics.data.gov.uk/id/local-authority/30UE,Central Support Services,1009,EARL - Communities,External Contractor,40198,Miscellaneous Expenses,5034,Rats and Mice Pest Control for Chorley Council,17/06/2022,0168209,"1,682.45",Revenue,ALPHA PEST CONTROL LIMITED,18208,,
Chorley Borough Council,http://statistics.data.gov.uk/id/local-authority/30UE,Control Accounts,Control,GOVN - Policy & Governance,Manual Control Account,00001,Balance Sheet,Balance,- VAT,01/06/2022,0167805,-316.30,Revenue,Alphabet (Uk) Fleet Management Ltd,16651,,
Chorley Borough Council,http://statistics.data.gov.uk/id/local-authority/30UE,Capital,Capital,EARL - Communities,Main Contractor,03007,Capital Expenditure,Capital,Installation of lighting at Astley park - main contractor,24/06/2022,0168493,"20,447.89",Capital,Altitude Services Ltd,77719,,
Chorley Borough Council,http://statistics.data.gov.uk/id/local-authority/30UE,Business Support,1095,GROW - Commercial & Property,Planned Maintenance,20006,Repairs Maintenance & Alts,5005,MW Ext    Market Walk Extension   - Security systems Planned Maintenance and remedials,01/06/2022,0167812,250.00,Revenue,Amalgamated Ltd,78289,,
Chorley Borough Council,http://statistics.data.gov.uk/id/local-authority/30UE,Central Support Services,1009,CUST - Customer & Digital,Computer Software-Additional,40102,Communication and Computing,5028,Amazon AWS web services - Cloud charges May 2022,17/06/2022,0168233,"4,979.11",Revenue,Amazon Web Services EMEA SARL,80604,,
Chorley Borough Council,http://statistics.data.gov.uk/id/local-authority/30UE,Central Support Services,1009,CUST - Customer & Digital,Computer Software-Additional,40102,Communication and Computing,5028,Amazon AWS web services - Cloud charges April 2022,17/06/2022,0168234,"4,670.75",Revenue,Amazon Web Services EMEA SARL,80604,,
Chorley Borough Council,http://statistics.data.gov.uk/id/local-authority/30UE,Central Support Services,1009,EARL - Communities,Impounded Dogs Costs,40207,Miscellaneous Expenses,5034,Kenneling and out of hours strays (April),10/06/2022,0167714,710.40,Revenue,Animal Wardens Ltd,80965,,
Chorley Borough Council,http://statistics.data.gov.uk/id/local-authority/30UE,Elections,1012,GOVN - Policy & Governance,Rent/Hire Of Premises,20017,Premises Rents,5007,room hire for polling station at St Josephs parish centre,01/06/2022,0167768,490.00,Revenue,APCMC Ltd,16350,,
Chorley Borough Council,http://statistics.data.gov.uk/id/local-authority/30UE,Control Accounts,Control,GOVN - Policy & Governance,Manual Control Account,00001,Balance Sheet,Balance,-vat,01/06/2022,0167511,-28.64,Revenue,Arval UK Ltd,18240,,
Chorley Borough Council,http://statistics.data.gov.uk/id/local-authority/30UE,Control Accounts,Control,GOVN - Policy & Governance,Manual Control Account,00001,Balance Sheet,Balance,-vat,01/06/2022,0167511,-26.35,Revenue,Arval UK Ltd,18240,,
Chorley Borough Council,http://statistics.data.gov.uk/id/local-authority/30UE,Control Accounts,Control,GOVN - Policy & Governance,Manual Control Account,00001,Balance Sheet,Balance,-vat,01/06/2022,0167511,-14.27,Revenue,Arval UK Ltd,18240,,
Chorley Borough Council,http://statistics.data.gov.uk/id/local-authority/30UE,Service Management & Support,1009,CUST - Customer & Digital,Supplies-Grounds Maintenance,40025,"Equipment, Furniture & Materia",5023,"2 x tensioner bars, 2 x tensioner springs, 2x belt sprockets",17/06/2022,0168061,287.18,Revenue,Balmers Garden Machinery,17075,,
Chorley Borough Council,http://statistics.data.gov.uk/id/local-authority/30UE,Service Management & Support,1009,CUST - Customer & Digital,Hire Of Vehicles and Plant,30028,Contrct Hire & Operating Lease,5018,As per submission to ITT invitation to Tender for the contract hire with service and maintenance of Grounds Maintenance Machinery,17/06/2022,0168104,"1,242.40",Revenue,Balmers Garden Machinery,17075,,
Chorley Borough Council,http://statistics.data.gov.uk/id/local-authority/30UE,Service Management & Support,1009,CUST - Customer & Digital,Grounds Maintenance Contractor,20043,Grounds Maintenance Costs,5013,Reduction of Beech near Fir Tree Close,17/06/2022,0168111,680.00,Revenue,Beardwood Tree Services,77437,,
Chorley Borough Council,http://statistics.data.gov.uk/id/local-authority/30UE,Service Management & Support,1009,CUST - Customer & Digital,Grounds Maintenance Contractor,20043,Grounds Maintenance Costs,5013,Coppicing of Hazels at Higher Meadow,17/06/2022,0168172,275.00,Revenue,Beardwood Tree Services,77437,,
Chorley Borough Council,http://statistics.data.gov.uk/id/local-authority/30UE,Unapportionable Central OHeads,1009,GROW - Commercial & Property,Planned Maintenance,20006,Repairs Maintenance & Alts,5005,All Seasons Asbestos Management Survey Quotation to the entire building. Costs include for the provision of a report ,01/06/2022,0167609,"1,975.00",Revenue,Bradley Environmental Consultants Ltd,77154,,
Chorley Borough Council,http://statistics.data.gov.uk/id/local-authority/30UE,Elections,1012,GOVN - Policy & Governance,Rent/Hire Of Premises,20017,Premises Rents,5007,room hire for polling station 5 May 2022,01/06/2022,0167769,360.00,Revenue,Bretherton Congregational Church Hall,53724,,
Chorley Borough Council,http://statistics.data.gov.uk/id/local-authority/30UE,Unapportionable Central OHeads,1009,GOVN - Policy & Governance,Exhibitions & Special Events,40158,Miscellaneous Expenses,5034,Punch & Judy Show`s for Picnic in the Park at Astley Park on Sunday 5 June 11am-3pm.,24/06/2022,0168345,300.00,Revenue,Brian Gore,18370,,
Chorley Borough Council,http://statistics.data.gov.uk/id/local-authority/30UE,Capital,Capital,GOVN - Policy & Governance,Main Contractor,03007,Capital Expenditure,Capital,Astley Hall Drawing Room Curtains: Stamford Amber Interlined without fringe Matching tiebacks: Valance with fringe Fitting,01/06/2022,0167575,"5,992.50",Capital,Brinscall Interiors Ltd,84868,,
Chorley Borough Council,http://statistics.data.gov.uk/id/local-authority/30UE,Capital,Capital,GROW - Commercial & Property,Main Contractor,03007,Capital Expenditure,Capital,Astley Hall redecoration works as agreed by NAME REDACTED,01/06/2022,0166962,"7,839.66",Capital,Bullen Conservation Ltd,68424,,
Chorley Borough Council,http://statistics.data.gov.uk/id/local-authority/30UE,Capital,Capital,GOVN - Policy & Governance,Other Contractor,03012,Capital Expenditure,Capital,Three elements for Astley Hall interpretation/visitor experience: PNG Digital costs for prototype graphics 3x additional days ,24/06/2022,0168379,"2,211.68",Capital,BWD Limited,78590,,
Chorley Borough Council,http://statistics.data.gov.uk/id/local-authority/30UE,Service Management & Support,1009,CUST - Customer & Digital,External Contractor,40198,Miscellaneous Expenses,5034,Bengal St Depot � Empty yard catch pits & interceptor every 3 months Rowan Croft Pond � Jet outlet pipe and clear trash screen,17/06/2022,0167653,390.00,Revenue,C J Lyon,16579,,
Chorley Borough Council,http://statistics.data.gov.uk/id/local-authority/30UE,Service Management & Support,1009,CUST - Customer & Digital,External Contractor,40198,Miscellaneous Expenses,5034,Bengal St Depot � Empty yard catch pits & interceptor every 3 months Rowan Croft Pond � Jet outlet pipe and clear trash screen,10/06/2022,0167674,390.00,Revenue,C J Lyon,16579,,
Chorley Borough Council,http://statistics.data.gov.uk/id/local-authority/30UE,Service Management & Support,1009,CUST - Customer & Digital,External Contractor,40198,Miscellaneous Expenses,5034,Bengal St Depot � Empty yard catch pits & interceptor every 3 months Rowan Croft Pond � Jet outlet pipe and clear trash screen,17/06/2022,0167742,400.00,Revenue,C J Lyon,16579,,
Chorley Borough Council,http://statistics.data.gov.uk/id/local-authority/30UE,Service Management & Support,1009,CUST - Customer & Digital,External Contractor,40198,Miscellaneous Expenses,5034,Bengal St Depot � Empty yard catch pits & interceptor every 3 months Rowan Croft Pond � Jet outlet pipe and clear trash screen,17/06/2022,0167771,720.00,Revenue,C J Lyon,16579,,
Chorley Borough Council,http://statistics.data.gov.uk/id/local-authority/30UE,Service Management & Support,1009,CUST - Customer & Digital,External Contractor,40198,Miscellaneous Expenses,5034,Bengal St Depot � Empty yard catch pits & interceptor every 3 months Rowan Croft Pond � Jet outlet pipe and clear trash screen,24/06/2022,0168428,400.00,Revenue,C J Lyon,16579,,
Chorley Borough Council,http://statistics.data.gov.uk/id/local-authority/30UE,Business Support,1095,GROW - Commercial & Property,Exhibitions & Special Events,40158,Miscellaneous Expenses,5034,"Jubilee Celebrations for Market Walk, Chorley, Platinum Jubilee Garden Party Workshop Inclusive of decoration and theming",24/06/2022,0168388,"2,350.00",Revenue,Candy House Events and Entertainment,85030,,
Chorley Borough Council,http://statistics.data.gov.uk/id/local-authority/30UE,Central Support Services,1009,CUST - Customer & Digital,Computer - Support Services,40111,Communication and Computing,5028,Hosting of Total Mobile,01/06/2022,0166996,"5,000.00",Revenue,Capita Business Services Ltd,17151,,
Chorley Borough Council,http://statistics.data.gov.uk/id/local-authority/30UE,Central Support Services,1009,CUST - Customer & Digital,ICT Software Implementation,40114,Communication and Computing,5028,CAPITA RENX 2022-019: Software Changes relating to Public Lavatory. Relief for business rates per correspondence dated 28/02,01/06/2022,0167457,"1,549.85",Revenue,Capita Business Services Ltd,17151,,
Chorley Borough Council,http://statistics.data.gov.uk/id/local-authority/30UE,Central Support Services,1009,CUST - Customer & Digital,ICT Software Implementation,40114,Communication and Computing,5028,DWP LA Data Share (LADS) Programme: IT Costs for work completed during the period 1/10/2021 to 31/3/2022,01/06/2022,0167458,"5,638.02",Revenue,Capita Business Services Ltd,17151,,
Chorley Borough Council,http://statistics.data.gov.uk/id/local-authority/30UE,Central Support Services,1009,CUST - Customer & Digital,Computer Software-Purchase,40100,Communication and Computing,5028,England � Energy Rebate Payment (ERP) Solution 2022,01/06/2022,0167506,"8,000.00",Revenue,Capita Business Services Ltd,17151,,
Chorley Borough Council,http://statistics.data.gov.uk/id/local-authority/30UE,Building Control,1090,PLAN - Planning & Development,Agency Staff,13000,Direct Employee Expenses,5001,Agency fees for Building Control Officer - NAME REDACTED - ongoing contract,10/06/2022,0167755,"1,248.00",Revenue,Carrington West Ltd,83124,,
Chorley Borough Council,http://statistics.data.gov.uk/id/local-authority/30UE,Building Control,1090,PLAN - Planning & Development,Agency Staff,13000,Direct Employee Expenses,5001,Agency fees for Building Control Officer - NAME REDACTED - ongoing contract,10/06/2022,0167756,"1,464.00",Revenue,Carrington West Ltd,83124,,
Chorley Borough Council,http://statistics.data.gov.uk/id/local-authority/30UE,Building Control,1090,PLAN - Planning & Development,Agency Staff,13000,Direct Employee Expenses,5001,Agency fees for Building Control Officer - NAME REDACTED - ongoing contract,10/06/2022,0168114,"1,512.00",Revenue,Carrington West Ltd,83124,,
Chorley Borough Council,http://statistics.data.gov.uk/id/local-authority/30UE,Building Control,1090,PLAN - Planning & Development,Agency Staff,13000,Direct Employee Expenses,5001,Agency fees for Building Control Officer - NAME REDACTED - ongoing contract,17/06/2022,0168235,"1,656.00",Revenue,Carrington West Ltd,83124,,
Chorley Borough Council,http://statistics.data.gov.uk/id/local-authority/30UE,Building Control,1090,PLAN - Planning & Development,Agency Staff,13000,Direct Employee Expenses,5001,Agency fees for Building Control Officer - NAME REDACTED - ongoing contract,24/06/2022,0168402,912.00,Revenue,Carrington West Ltd,83124,,
Chorley Borough Council,http://statistics.data.gov.uk/id/local-authority/30UE,Building Control,1090,PLAN - Planning & Development,Agency Staff,13000,Direct Employee Expenses,5001,Agency fees for Building Control Officer,24/06/2022,0168458,"1,560.00",Revenue,Carrington West Ltd,83124,,
Chorley Borough Council,http://statistics.data.gov.uk/id/local-authority/30UE,Building Control,1090,PLAN - Planning & Development,Agency Staff,13000,Direct Employee Expenses,5001,Agency fees for Building Control Officer - NAME REDACTED - ongoing contract,24/06/2022,0168460,"1,728.00",Revenue,Carrington West Ltd,83124,,
Chorley Borough Council,http://statistics.data.gov.uk/id/local-authority/30UE,Building Control,1090,PLAN - Planning & Development,Agency Staff,13000,Direct Employee Expenses,5001,Agency fees for NAME REDACTED  Building Control Officer - initial 6 months contract effective 13.06.2022,24/06/2022,0168498,924.00,Revenue,Carrington West Ltd,83124,,
Chorley Borough Council,http://statistics.data.gov.uk/id/local-authority/30UE,Homelessness,1075,EARL - Communities,Grants - Tenant Participation,40142,Grants and Subscriptions,5031,Ukrainian Sponsorship 1,23/06/2022,0168237,545.50,Revenue,NAME REDACTED,85414,,
Chorley Borough Council,http://statistics.data.gov.uk/id/local-authority/30UE,Tourism,1039,GOVN - Policy & Governance,Misc Expenses,40200,Miscellaneous Expenses,5034,"Jubilee Beacon Lighting - Lighting equipment, crew, generator and transport PA System Three gobo�s HD video streaming ",24/06/2022,0168360,"1,160.00",Revenue,CDS Events,81168,,
Chorley Borough Council,http://statistics.data.gov.uk/id/local-authority/30UE,Central Support Services,1009,GROW - Commercial & Property,Salting & Gritting,20059,Grounds Maintenance Costs,5013,Seasonal Winter Gritting service for Westway Sports Hub. Car Park and footpaths as discussed on site. Inc H track service.,01/06/2022,0166447,401.52,Revenue,Chameleon Facilities Limited,78464,,
Chorley Borough Council,http://statistics.data.gov.uk/id/local-authority/30UE,Central Support Services,1009,GROW - Commercial & Property,Salting & Gritting,20059,Grounds Maintenance Costs,5013,Seasonal Winter Gritting service for Westway Sports Hub. Car Park and footpaths as discussed on site. Inc H track service.,01/06/2022,0166448,401.52,Revenue,Chameleon Facilities Limited,78464,,
Chorley Borough Council,http://statistics.data.gov.uk/id/local-authority/30UE,Business Support,1095,GROW - Commercial & Property,Salting & Gritting,20059,Grounds Maintenance Costs,5013,"Seasonal Winter Gritting service for Strawberry Fields Digital Office Park, public walkways and car parks as discussed ",01/06/2022,0166449,"1,674.96",Revenue,Chameleon Facilities Limited,78464,,
Chorley Borough Council,http://statistics.data.gov.uk/id/local-authority/30UE,Homelessness,1075,GROW - Commercial & Property,Salting & Gritting,20059,Grounds Maintenance Costs,5013,"Seasonal Winter Gritting service for Cotswold House, public walkways and car park as discussed  ",01/06/2022,0166450,"1,606.96",Revenue,Chameleon Facilities Limited,78464,,
Chorley Borough Council,http://statistics.data.gov.uk/id/local-authority/30UE,Business Support,1095,GROW - Commercial & Property,Salting & Gritting,20059,Grounds Maintenance Costs,5013,"Seasonal Winter Gritting service for Market Walk Shopping Centre, service yards, public walkways and car park as discussed ",10/06/2022,0166612,"4,525.08",Revenue,Chameleon Facilities Limited,78464,,
Chorley Borough Council,http://statistics.data.gov.uk/id/local-authority/30UE,Business Support,1095,GROW - Commercial & Property,Salting & Gritting,20059,Grounds Maintenance Costs,5013,"Seasonal Winter Gritting service for Strawberry Fields Digital Office Park, public walkways and car parks as discussed ",10/06/2022,0166612,55.81,Revenue,Chameleon Facilities Limited,78464,,
Chorley Borough Council,http://statistics.data.gov.uk/id/local-authority/30UE,Business Support,1095,GROW - Commercial & Property,Salting & Gritting,20059,Grounds Maintenance Costs,5013,"Seasonal Winter Gritting service for Primrose Gardens Retirement Village, public walkways and car park as discussed ",10/06/2022,0166612,477.10,Revenue,Chameleon Facilities Limited,78464,,
Chorley Borough Council,http://statistics.data.gov.uk/id/local-authority/30UE,Homelessness,1075,GROW - Commercial & Property,Salting & Gritting,20059,Grounds Maintenance Costs,5013,"Seasonal Winter Gritting service for Cotswold House, public walkways and car park as discussed ",10/06/2022,0166612,142.04,Revenue,Chameleon Facilities Limited,78464,,
Chorley Borough Council,http://statistics.data.gov.uk/id/local-authority/30UE,Economic Development,1096,GROW - Commercial & Property,Salting & Gritting,20059,Grounds Maintenance Costs,5013,Seasonal Winter Gritting service for Market Place (either side of Chorley Covered Market) as discussed.,10/06/2022,0166612,383.17,Revenue,Chameleon Facilities Limited,78464,,
Chorley Borough Council,http://statistics.data.gov.uk/id/local-authority/30UE,Central Support Services,1009,GROW - Commercial & Property,Salting & Gritting,20059,Grounds Maintenance Costs,5013,Seasonal Winter Gritting service for Westway Sports Hub. Car Park and footpaths as discussed on site. Inc H track service.,01/06/2022,0166613,"1,338.40",Revenue,Chameleon Facilities Limited,78464,,
Chorley Borough Council,http://statistics.data.gov.uk/id/local-authority/30UE,Central Support Services,1009,GROW - Commercial & Property,Salting & Gritting,20059,Grounds Maintenance Costs,5013,Seasonal Winter Gritting service for Westway Sports Hub. Car Park and footpaths as discussed on site. Inc H track service.,01/06/2022,0166727,550.00,Revenue,Chameleon Facilities Limited,78464,,
Chorley Borough Council,http://statistics.data.gov.uk/id/local-authority/30UE,Economic Development,1096,GROW - Commercial & Property,Salting & Gritting,20059,Grounds Maintenance Costs,5013,Seasonal Winter Gritting service for Market Place (either side of Chorley Covered Market) as discussed.,01/06/2022,0166755,550.00,Revenue,Chameleon Facilities Limited,78464,,
Chorley Borough Council,http://statistics.data.gov.uk/id/local-authority/30UE,Recreation & Sport,1037,GROW - Commercial & Property,Salting & Gritting,20059,Grounds Maintenance Costs,5013,Seasonal Winter Gritting service for Clayton Green Leisure |centre.  Pathways to main entrance from Asda carpark,01/06/2022,0166756,550.00,Revenue,Chameleon Facilities Limited,78464,,
Chorley Borough Council,http://statistics.data.gov.uk/id/local-authority/30UE,Central Support Services,1009,GROW - Commercial & Property,Salting & Gritting,20059,Grounds Maintenance Costs,5013,Seasonal Winter Gritting service for Westway Sports Hub. Car Park and footpaths as discussed on site. Inc H track service.,01/06/2022,0166757,535.36,Revenue,Chameleon Facilities Limited,78464,,
Chorley Borough Council,http://statistics.data.gov.uk/id/local-authority/30UE,Business Support,1095,GROW - Commercial & Property,Salting & Gritting,20059,Grounds Maintenance Costs,5013,"Seasonal Winter Gritting service for Primrose Gardens Retirement Village, public walkways and car park as discussed  ",01/06/2022,0166758,"2,233.28",Revenue,Chameleon Facilities Limited,78464,,
Chorley Borough Council,http://statistics.data.gov.uk/id/local-authority/30UE,Business Support,1095,GROW - Commercial & Property,Salting & Gritting,20059,Grounds Maintenance Costs,5013,"Seasonal Winter Gritting service for Strawberry Fields Digital Office Park, public walkways and car parks as discussed  ",01/06/2022,0166759,"1,674.96",Revenue,Chameleon Facilities Limited,78464,,
Chorley Borough Council,http://statistics.data.gov.uk/id/local-authority/30UE,Recreation & Sport,1037,GROW - Commercial & Property,Salting & Gritting,20059,Grounds Maintenance Costs,5013,Seasonal Winter Gritting service for Brinscall Pool site Carpark and entrance including footpath from carpark to main entrance,01/06/2022,0166760,538.89,Revenue,Chameleon Facilities Limited,78464,,
Chorley Borough Council,http://statistics.data.gov.uk/id/local-authority/30UE,Central Support Services,1009,GROW - Commercial & Property,Salting & Gritting,20059,Grounds Maintenance Costs,5013,Seasonal Winter Gritting service for Westway Sports Hub. Car Park and footpaths as discussed on site. Inc H track service.,01/06/2022,0166761,401.52,Revenue,Chameleon Facilities Limited,78464,,
Chorley Borough Council,http://statistics.data.gov.uk/id/local-authority/30UE,Democratic Represent and  Mgnt,1007,GROW - Commercial & Property,Salting & Gritting,20059,Grounds Maintenance Costs,5013,"Seasonal Winter Gritting service for All Seasons Leisure Centre site Main carpark, access road and a front entrance to building",01/06/2022,0166762,718.52,Revenue,Chameleon Facilities Limited,78464,,
Chorley Borough Council,http://statistics.data.gov.uk/id/local-authority/30UE,Tourism,1039,GOVN - Policy & Governance,Misc Expenses,40200,Miscellaneous Expenses,5034,Jubilee payment,01/06/2022,0167851,900.00,Revenue,Charlotte Davies,85231,,
Chorley Borough Council,http://statistics.data.gov.uk/id/local-authority/30UE,Parking Services,1066,GROW - Commercial & Property,External Contractors,50008,Private Contractors,5042,"MIPERMIT FEES, MIPERMIT CHARGE, ELECPAYBANKFEE",17/06/2022,0167386,419.34,Revenue,Chipside Ltd,22063,,
Chorley Borough Council,http://statistics.data.gov.uk/id/local-authority/30UE,Parking Services,1066,GROW - Commercial & Property,External Contractors,50008,Private Contractors,5042,"MIPERMIT FEES, MIPERMIT CHARGE, ELECPAYBANKFEE",17/06/2022,0168117,421.01,Revenue,Chipside Ltd,22063,,
Chorley Borough Council,http://statistics.data.gov.uk/id/local-authority/30UE,Economic Development,1096,GROW - Commercial & Property,Publicity - Advertising,40157,Miscellaneous Expenses,5034,Annual sponsorship of scooter to promote Chorley Markets,24/06/2022,0167921,250.00,Revenue,Chorley & South Ribble Shopmobility,18403,,
Chorley Borough Council,http://statistics.data.gov.uk/id/local-authority/30UE,Regulatory Services,1048,PLAN - Planning & Development,Taxi Testing & Vehicle Safety Report,40234,Services,5027,mot,10/06/2022,0167926,877.60,Revenue,Chorley Autocare Ltd,17110,,
Chorley Borough Council,http://statistics.data.gov.uk/id/local-authority/30UE,Regulatory Services,1048,PLAN - Planning & Development,Taxi Testing & Vehicle Safety Report,40234,Services,5027,taxi test,10/06/2022,0167926,136.80,Revenue,Chorley Autocare Ltd,17110,,
Chorley Borough Council,http://statistics.data.gov.uk/id/local-authority/30UE,Elections,1012,GOVN - Policy & Governance,Rent/Hire Of Premises,20017,Premises Rents,5007,room hire for polling station 5 may 2022,01/06/2022,0167774,425.00,Revenue,Chorley Methodist Church,18422,,
Chorley Borough Council,http://statistics.data.gov.uk/id/local-authority/30UE,Central Support Services,1009,EARL - Communities,Children's Activities,40188,Miscellaneous Expenses,5034,Delivery of PASTA programme - Jan to March 2022,24/06/2022,0168469,"7,500.00",Revenue,Chorley School Sport Partnership,56115,,
Chorley Borough Council,http://statistics.data.gov.uk/id/local-authority/30UE,Central Support Services,1009,EARL - Communities,Children's Activities,40188,Miscellaneous Expenses,5034,Delivery of PASTA programme - April to June 2022,24/06/2022,0168470,"7,500.00",Revenue,Chorley School Sport Partnership,56115,,
Chorley Borough Council,http://statistics.data.gov.uk/id/local-authority/30UE,Tourism,1039,GOVN - Policy & Governance,Misc Expenses,40200,Miscellaneous Expenses,5034,Jubilee payment,01/06/2022,0167853,"1,089.03",Revenue,Chorley URC General Account,85233,,
Chorley Borough Council,http://statistics.data.gov.uk/id/local-authority/30UE,Central Support Services,1009,EARL - Communities,Children's Activities,40188,Miscellaneous Expenses,5034,Lancashire Breaktime respite care by Inspire Youth Zone November 2021 Term Time,17/06/2022,0168121,"1,171.38",Revenue,Chorley Youth Zone,77339,,
Chorley Borough Council,http://statistics.data.gov.uk/id/local-authority/30UE,Central Support Services,1009,EARL - Communities,Other Contributions,40145,Grants and Subscriptions,5031,Grant to support ongoing delivery costs of the core provision for period April 2022 to March 2023,10/06/2022,0168122,"100,000.00",Revenue,Chorley Youth Zone,77339,,
Chorley Borough Council,http://statistics.data.gov.uk/id/local-authority/30UE,Central Support Services,1009,EARL - Communities,Children's Activities,40188,Miscellaneous Expenses,5034,Delivery of Easter HAF contribution,17/06/2022,0168123,"25,000.00",Revenue,Chorley Youth Zone,77339,,
Chorley Borough Council,http://statistics.data.gov.uk/id/local-authority/30UE,Central Support Services,1009,EARL - Communities,Children's Activities,40188,Miscellaneous Expenses,5034,Lancashire Breaktime respite care by Inspire Youth Zone February 2022 Half Term,17/06/2022,0168124,"1,346.30",Revenue,Chorley Youth Zone,77339,,
Chorley Borough Council,http://statistics.data.gov.uk/id/local-authority/30UE,Central Support Services,1009,EARL - Communities,Children's Activities,40188,Miscellaneous Expenses,5034,Lancashire Breaktime respite care by Inspire Youth Zone February 2022 Term Time,17/06/2022,0168125,"1,268.60",Revenue,Chorley Youth Zone,77339,,
Chorley Borough Council,http://statistics.data.gov.uk/id/local-authority/30UE,Central Support Services,1009,EARL - Communities,Children's Activities,40188,Miscellaneous Expenses,5034,Lancashire Breaktime respite care by Inspire Youth Zone January 2022 Term Time,17/06/2022,0168126,"1,165.05",Revenue,Chorley Youth Zone,77339,,
Chorley Borough Council,http://statistics.data.gov.uk/id/local-authority/30UE,Central Support Services,1009,EARL - Communities,Children's Activities,40188,Miscellaneous Expenses,5034,Lancashire Breaktime respite care by Inspire Youth Zone December 2021 Term Time,17/06/2022,0168127,753.03,Revenue,Chorley Youth Zone,77339,,
Chorley Borough Council,http://statistics.data.gov.uk/id/local-authority/30UE,Tourism,1039,GOVN - Policy & Governance,Professional Fees,40063,Services,5027,First Aid cover at events,17/06/2022,0168128,300.00,Revenue,Chorley`s Angels Community Group,63882,,
Chorley Borough Council,http://statistics.data.gov.uk/id/local-authority/30UE,Service Management & Support,1009,CUST - Customer & Digital,Vehicles and Plant Operating Lease,30029,Contrct Hire & Operating Lease,5018,Saving Fee relating to Triple Point Extension CLC-5140-003 PK15 UPE,17/06/2022,0168291,94.71,Revenue,Chrystal Consulting Limited,17613,,
Chorley Borough Council,http://statistics.data.gov.uk/id/local-authority/30UE,Service Management & Support,1009,CUST - Customer & Digital,Vehicles and Plant Operating Lease,30029,Contrct Hire & Operating Lease,5018,Saving Fee relating to Triple Point Extension CLC-5140-003 PK55 UOA,17/06/2022,0168291,97.80,Revenue,Chrystal Consulting Limited,17613,,
Chorley Borough Council,http://statistics.data.gov.uk/id/local-authority/30UE,Service Management & Support,1009,CUST - Customer & Digital,Vehicles and Plant Operating Lease,30029,Contrct Hire & Operating Lease,5018,Saving Fee relating to Triple Point Extension CLC-5140-003 PE15 ZRJ,17/06/2022,0168291,91.87,Revenue,Chrystal Consulting Limited,17613,,
Chorley Borough Council,http://statistics.data.gov.uk/id/local-authority/30UE,Service Management & Support,1009,CUST - Customer & Digital,Hire Of Vehicles and Plant,30028,Contrct Hire & Operating Lease,5018,Hire of MEWP to erect lamp post baskets,17/06/2022,0168129,650.00,Revenue,City Illuminations Ltd,77388,,
Chorley Borough Council,http://statistics.data.gov.uk/id/local-authority/30UE,Central Support Services,1009,CUST - Customer & Digital,IT Software - Annual Licences,40101,Communication and Computing,5028,"Annual Support & Maintenance, Web site rebranding, Enhanced Training Package, Data Transfer fee",10/06/2022,0166435,"6,000.00",Revenue,Civica UK Limited,17463,,
Chorley Borough Council,http://statistics.data.gov.uk/id/local-authority/30UE,Central Support Services,1009,CUST - Customer & Digital,IT Software - Annual Licences,40101,Communication and Computing,5028,"Modern.Gov annual support, restricted app and ADFS",10/06/2022,0167199,"11,372.40",Revenue,Civica UK Limited,17463,,
Chorley Borough Council,http://statistics.data.gov.uk/id/local-authority/30UE,Unapportionable Central OHeads,1009,GROW - Commercial & Property,Planned Maintenance,20006,Repairs Maintenance & Alts,5005,Service contract Cotswold House - passenger lift 01/03/22 to 28/02/23,10/06/2022,0166841,368.00,Revenue,Classic Lifts Limited,20897,,
Chorley Borough Council,http://statistics.data.gov.uk/id/local-authority/30UE,Unapportionable Central OHeads,1009,GROW - Commercial & Property,General Repairs - Reactive,20004,Repairs Maintenance & Alts,5005,Cotswold House -To supply and fit a GSM unit with a 3 year sim card. This unit will work injunction with your autodialler ,10/06/2022,0168173,"1,082.27",Revenue,Classic Lifts Limited,20897,,
Chorley Borough Council,http://statistics.data.gov.uk/id/local-authority/30UE,Business Support,1095,GROW - Commercial & Property,Building Services Maintenance Other,20076,Fixtures and Fittings,5010,Chorley Digital Office Park -To supply and fit an autodialler which will be linked to a gsm unit,10/06/2022,0168174,"1,854.67",Revenue,Classic Lifts Limited,20897,,
Chorley Borough Council,http://statistics.data.gov.uk/id/local-authority/30UE,Capital,Capital,GOVN - Policy & Governance,Main Contractor,03007,Capital Expenditure,Capital,Astley Hall Museum and Art Gallery Vista Click Netherfield Case Case reference Scope Delivery and Installation,01/06/2022,0167733,919.80,Capital,ClickNetherfield Ltd,66887,,
Chorley Borough Council,http://statistics.data.gov.uk/id/local-authority/30UE,Tourism,1039,GOVN - Policy & Governance,Misc Expenses,40200,Miscellaneous Expenses,5034,Jubilee payment,01/06/2022,0167854,"1,190.00",Revenue,Coppull Parish council,85234,,
Chorley Borough Council,http://statistics.data.gov.uk/id/local-authority/30UE,Central Support Services,1009,CUST - Customer & Digital,Items For Resale,40027,"Equipment, Furniture & Materia",5023,"Neo 240L HDPE, BROWN wheeled bin with Chorley logo. Quantity = 300",24/06/2022,0168457,"6,105.00",Revenue,Craemer UK Ltd,64712,,
Chorley Borough Council,http://statistics.data.gov.uk/id/local-authority/30UE,Central Support Services,1009,CUST - Customer & Digital,Items For Resale,40027,"Equipment, Furniture & Materia",5023,"Neo 240L HDPE, GREY wheeled bin with Chorley logo and RFID chip fitted.   Quantity = 300",24/06/2022,0168459,"6,075.00",Revenue,Craemer UK Ltd,64712,,
Chorley Borough Council,http://statistics.data.gov.uk/id/local-authority/30UE,Business Support,1095,GOVN - Policy & Governance,Promotional Expenses,40159,Miscellaneous Expenses,5034,Full Page Advert in The Voice Magazine for Strawberry Fields Digital Office Hub.,17/06/2022,0168231,650.00,Revenue,Crosby Associates Media Ltd,85013,,
Chorley Borough Council,http://statistics.data.gov.uk/id/local-authority/30UE,Tourism,1039,GOVN - Policy & Governance,Misc Expenses,40200,Miscellaneous Expenses,5034,Jubilee payment,01/06/2022,0167855,314.06,Revenue,CROSTON COMMITY CENTRE,85235,,
Chorley Borough Council,http://statistics.data.gov.uk/id/local-authority/30UE,Service Management & Support,1009,CUST - Customer & Digital,Supplies-Grounds Maintenance,40025,"Equipment, Furniture & Materia",5023,"Supply 2 Balmoral 1.8m Teak benches. Deliver to Bengal St depot, Chorley, PR7 1SA",17/06/2022,0167650,733.33,Revenue,Cyan t/a Lindsey,61782,,
Chorley Borough Council,http://statistics.data.gov.uk/id/local-authority/30UE,Capital,Capital,EARL - Communities,Grants,03002,Capital Expenditure,Capital,21/00173/CAG ADDRESS REDACTED,10/06/2022,0168056,"5,060.00",Capital,D J Bathing,78482,,
Chorley Borough Council,http://statistics.data.gov.uk/id/local-authority/30UE,Business Support,1095,GROW - Commercial & Property,Misc Expenses,40200,Miscellaneous Expenses,5034,"Per your week 8 invoice 654256, Reception/admin cover ",01/06/2022,0167790,336.38,Revenue,Daniel Adams Recruitment,78104,,
Chorley Borough Council,http://statistics.data.gov.uk/id/local-authority/30UE,Business Support,1095,GROW - Commercial & Property,Misc Expenses,40200,Miscellaneous Expenses,5034,Week Ending 05/06/2022 NAME REDACTED � Reception /Administrator  NAME REDACTED � Cleaner,24/06/2022,0168377,501.98,Revenue,Daniel Adams Recruitment,78104,,
Chorley Borough Council,http://statistics.data.gov.uk/id/local-authority/30UE,Business Support,1095,GROW - Commercial & Property,Misc Expenses,40200,Miscellaneous Expenses,5034,Week Ending 05/06/2022 NAME REDACTED � Reception /Administrator  NAME REDACTED � Cleaner,24/06/2022,0168378,560.63,Revenue,Daniel Adams Recruitment,78104,,
Chorley Borough Council,http://statistics.data.gov.uk/id/local-authority/30UE,Central Support Services,1009,CUST - Customer & Digital,Computer Equipment-Purchase,40098,Communication and Computing,5028,"VxRail V670F, All Flash- Dell Networking, Transceiver, 25GbE SFP28 SR, No FEC, MMF, Duplex LC, Customer Kit",01/06/2022,0167020,"131,521.75",Revenue,Dell Corporation Ltd,64387,,
Chorley Borough Council,http://statistics.data.gov.uk/id/local-authority/30UE,Democratic Represent and  Mgnt,1007,GOVN - Policy & Governance,Arts Development Initiatives,40187,Miscellaneous Expenses,5034,The supply one stained glass handling panel to replicate glazing at Astely Hall. To supply one incomplete handling panel,10/06/2022,0167216,400.00,Revenue,Design Lights Stained Glass Ltd,82453,,
Chorley Borough Council,http://statistics.data.gov.uk/id/local-authority/30UE,Democratic Represent and  Mgnt,1007,GOVN - Policy & Governance,General Subscriptions,40146,Grants and Subscriptions,5031,ANNUAL MEMBERSHIP SUBSCRIPTION RENEWAL FOR 2022/2023,10/06/2022,0167702,"3,150.00",Revenue,District Councils Network,58156,,
Chorley Borough Council,http://statistics.data.gov.uk/id/local-authority/30UE,Capital,Capital,EARL - Communities,Main Contractor,03007,Capital Expenditure,Capital,Pitch works at Kem Mill Lane,24/06/2022,0168323,"3,568.04",Capital,Duncan Ross Ltd,76803,,
Chorley Borough Council,http://statistics.data.gov.uk/id/local-authority/30UE,Capital,Capital,GROW - Commercial & Property,Main Contractor,03007,Capital Expenditure,Capital,ADDRESS REDACTED Additional works required to renovate property ready for occupation,10/06/2022,0166615,"7,949.23",Capital,EFT Construction,78195,,
Chorley Borough Council,http://statistics.data.gov.uk/id/local-authority/30UE,Capital,Capital,EARL - Communities,Other Capital Related Fees,03024,Capital Expenditure,Capital,"Electricity service alteration to your property at Adlington FC, Construction Works including: Excavation, Backfill & Resurfacing",24/06/2022,0168515,"1,645.45",Capital,Electricity North West Ltd,17118,,
Chorley Borough Council,http://statistics.data.gov.uk/id/local-authority/30UE,Business Support,1095,GROW - Commercial & Property,Internet Charges,40104,Communication and Computing,5028,"Call Off order for: Operate Growth, Connect Growth, April-March 2023, Call charges and IP addresses for March-February 2023",24/06/2022,0168421,"3,810.00",Revenue,Essensys Ltd,77836,,
Chorley Borough Council,http://statistics.data.gov.uk/id/local-authority/30UE,Business Support,1095,GROW - Commercial & Property,Internet Charges,40104,Communication and Computing,5028,"Call Off order for: Operate Growth, Connect Growth, April-March 2023, Call charges and IP addresses for March-February 2023",24/06/2022,0168422,260.89,Revenue,Essensys Ltd,77836,,
Chorley Borough Council,http://statistics.data.gov.uk/id/local-authority/30UE,Central Support Services,1009,GOVN - Policy & Governance,Mayoral Hospitality,40123,Expenses,5030,Venue dressing for the Mayor`s Civic Dinner on 27th September 2022 in the Lancastrian at Chorley Town Hall.,01/06/2022,0167316,472.90,Revenue,Event Entertainment Ltd (The Big White Events Comp,62042,,
Chorley Borough Council,http://statistics.data.gov.uk/id/local-authority/30UE,Service Management & Support,1009,CUST - Customer & Digital,Supplies - Workshop,40246,"Equipment, Furniture & Materia",5023,As per pro forma,17/06/2022,0168078,477.50,Revenue,F R Sharrock Ltd,18091,,
Chorley Borough Council,http://statistics.data.gov.uk/id/local-authority/30UE,Central Support Services,1009,CUST - Customer & Digital,Unitary Payment(S),50009,Private Contractors,5042,Provision of Waste and Recycling Services to Chorley Council 2022/23,01/06/2022,0167739,"203,910.86",Revenue,FCC Environment Services (UK) Limited,77903,,
Chorley Borough Council,http://statistics.data.gov.uk/id/local-authority/30UE,Central Support Services,1009,EARL - Communities,Misc Expenses,40200,Miscellaneous Expenses,5034,Festive lights order for Clayton Brook from christmas 2021,17/06/2022,0167503,439.78,Revenue,Festive Lights Limited,85182,,
Chorley Borough Council,http://statistics.data.gov.uk/id/local-authority/30UE,Central Support Services,1009,EARL - Communities,Misc Expenses,40200,Miscellaneous Expenses,5034,uk plug,17/06/2022,0167503,7.99,Revenue,Festive Lights Limited,85182,,
Chorley Borough Council,http://statistics.data.gov.uk/id/local-authority/30UE,Tourism,1039,GOVN - Policy & Governance,Tools & Equipment - Hire,40004,"Equipment, Furniture & Materia",5023,1 Grand Floral & Amateur Societies/Gardening 1 Clearspan Frame Structure  With fluorescent lighting Glazed aluminium Door,01/06/2022,167740,"40,284.25",Revenue,Field and Lawn Ltd,74977,,
Chorley Borough Council,http://statistics.data.gov.uk/id/local-authority/30UE,Parking Services,1066,GROW - Commercial & Property,External Contractors,50008,Private Contractors,5042,Provision of the maintenance contract for 22 machines across various locations in Chorley for the period of  01.07.22 -   30.06.23,24/06/2022,0168455,"14,974.05",Revenue,Flow Bird Smart City UK Ltd,16279,,
Chorley Borough Council,http://statistics.data.gov.uk/id/local-authority/30UE,Parking Services,1066,GROW - Commercial & Property,External Contractors,50008,Private Contractors,5042,Pro-rata cost to include warranty expiry machine 08/05/2023  30/06/2023: Cleveland St overflow (machine 28),24/06/2022,0168455,98.58,Revenue,Flow Bird Smart City UK Ltd,16279,,
Chorley Borough Council,http://statistics.data.gov.uk/id/local-authority/30UE,Capital,Capital,GROW - Commercial & Property,Other Capital Related Fees,03024,Capital Expenditure,Capital,Work to installing LED lighting to market walkway as per quotation,24/06/2022,0168385,"11,941.07",Capital,Fox Contractors Limited,81125,,
Chorley Borough Council,http://statistics.data.gov.uk/id/local-authority/30UE,Capital,Capital,GROW - Commercial & Property,Other Capital Related Fees,03024,Capital Expenditure,Capital,Work to installing 7 x fittings to market entrances as per quotation,24/06/2022,0168399,"3,372.67",Capital,Fox Contractors Limited,81125,,
Chorley Borough Council,http://statistics.data.gov.uk/id/local-authority/30UE,Regulatory Services,1048,PLAN - Planning & Development,Legal Fees,40171,Miscellaneous Expenses,5034,Fees in respect of name redacted Taxi Licensing Appeal 14.04.2022 Brief on Case Management Hearing,10/06/2022,0167642,750.00,Revenue,Freddie Humphreys,78375,,
Chorley Borough Council,http://statistics.data.gov.uk/id/local-authority/30UE,Homelessness,1075,GROW - Commercial & Property,Furniture - Purchase,40012,"Equipment, Furniture & Materia",5023,2x Waterproof single mattress 2x Standard bed base single 1x Chester gents wardrobe,10/06/2022,0168107,597.05,Revenue,Furniture Resource Centre Ltd,22085,,
Chorley Borough Council,http://statistics.data.gov.uk/id/local-authority/30UE,Homelessness,1075,EARL - Communities,Agency Staff,13000,Direct Employee Expenses,5001,HS post as new member of staff NAME REDACTED (though placement agreed in November 2021 for agency staff,01/06/2022,0167313,"1,122.00",Revenue,G2 Recruitment Solutions,84173,,
Chorley Borough Council,http://statistics.data.gov.uk/id/local-authority/30UE,Homelessness,1075,EARL - Communities,Agency Staff,13000,Direct Employee Expenses,5001,HS post as new member of staff NAME REDACTED (though placement agreed in November 2021 for agency staff,10/06/2022,0167314,"1,196.25",Revenue,G2 Recruitment Solutions,84173,,
Chorley Borough Council,http://statistics.data.gov.uk/id/local-authority/30UE,Corporate Management,1008,EARL - Communities,Agency Staff,13000,Direct Employee Expenses,5001,Agency placement of NAME REDACTED in the temporary Housing Solutions Manager (operations) role for 6 months,01/06/2022,0167574,"1,080.00",Revenue,G2 Recruitment Solutions,84173,,
Chorley Borough Council,http://statistics.data.gov.uk/id/local-authority/30UE,Corporate Management,1008,EARL - Communities,Agency Staff,13000,Direct Employee Expenses,5001,Agency placement of NAME REDACTED in the temporary Housing Solutions Manager (operations) role for 6 months,10/06/2022,0167745,"1,395.00",Revenue,G2 Recruitment Solutions,84173,,
Chorley Borough Council,http://statistics.data.gov.uk/id/local-authority/30UE,Corporate Management,1008,EARL - Communities,Agency Staff,13000,Direct Employee Expenses,5001,Agency placement of NAME REDACTED in the temporary Housing Solutions Manager (operations) role for 6 months,10/06/2022,0167933,"1,631.25",Revenue,G2 Recruitment Solutions,84173,,
Chorley Borough Council,http://statistics.data.gov.uk/id/local-authority/30UE,Corporate Management,1008,EARL - Communities,Agency Staff,13000,Direct Employee Expenses,5001,Agency placement of NAME REDACTED in the temporary Housing Solutions Manager (operations) role for 6 months,17/06/2022,0168179,"1,608.75",Revenue,G2 Recruitment Solutions,84173,,
Chorley Borough Council,http://statistics.data.gov.uk/id/local-authority/30UE,Corporate Management,1008,EARL - Communities,Agency Staff,13000,Direct Employee Expenses,5001,Agency placement of NAME REDACTED in the temporary Housing Solutions Manager (operations) role for 6 months,24/06/2022,0168376,"1,147.50",Revenue,G2 Recruitment Solutions,84173,,
Chorley Borough Council,http://statistics.data.gov.uk/id/local-authority/30UE,Homelessness,1075,EARL - Communities,Grants - Tenant Participation,40142,Grants and Subscriptions,5031,Ukrainian Sponsorship 1,23/06/2022,0168239,499.50,Revenue,NAME REDACTED,85416,,
Chorley Borough Council,http://statistics.data.gov.uk/id/local-authority/30UE,Culture & Heritage,1036,GOVN - Policy & Governance,Souvenirs,40033,"Equipment, Furniture & Materia",5023,BRITISH FOSSILS ORDER May 2022 GEMSTONES Amethyst Rose Quartz Gold Tiger Eye Chevron Amethyst Breccia,10/06/2022,0167651,856.00,Revenue,Giftstones Ltd T/A British Fossils,80856,,
Chorley Borough Council,http://statistics.data.gov.uk/id/local-authority/30UE,Homelessness,1075,EARL - Communities,Grants - Tenant Participation,40142,Grants and Subscriptions,5031,Ukrainian Sponsorship 1,23/06/2022,0168242,264.50,Revenue,NAME REDACTED,85419,,
Chorley Borough Council,http://statistics.data.gov.uk/id/local-authority/30UE,Service Management & Support,1009,CUST - Customer & Digital,Hire Of Vehicles and Plant,30028,Contrct Hire & Operating Lease,5018,3 Year Contract hire 1x Schmidt Swingo 200+ as per ITT including servicing and Maintenance,17/06/2022,0167730,"8,574.24",Revenue,Go Plant Fleet Services Ltd,80857,,
Chorley Borough Council,http://statistics.data.gov.uk/id/local-authority/30UE,Service Management & Support,1009,CUST - Customer & Digital,Supplies-Grounds Maintenance,40025,"Equipment, Furniture & Materia",5023,Supply 8 Poly wire brushes Schmidt,10/06/2022,0167789,454.59,Revenue,Go Plant Fleet Services Ltd,80857,,
Chorley Borough Council,http://statistics.data.gov.uk/id/local-authority/30UE,Central Support Services,1009,CUST - Customer & Digital,Professional Fees,40063,Services,5027,Garden waste subscription payments 2022/23 for Chorley and South Ribble,10/06/2022,0167791,708.33,Revenue,GoCardless,77457,,
Chorley Borough Council,http://statistics.data.gov.uk/id/local-authority/30UE,Central Support Services,1009,CUST - Customer & Digital,Professional Fees,40063,Services,5027,2021-2022 Garden Waste Subscription payments,10/06/2022,0167792,711.33,Revenue,GoCardless,77457,,
Chorley Borough Council,http://statistics.data.gov.uk/id/local-authority/30UE,Central Support Services,1009,CUST - Customer & Digital,Professional Fees,40063,Services,5027,Garden waste subscription payments 2022/23 for Chorley and South Ribble,10/06/2022,0167935,"1,249.25",Revenue,GoCardless,77457,,
Chorley Borough Council,http://statistics.data.gov.uk/id/local-authority/30UE,Central Support Services,1009,CUST - Customer & Digital,Professional Fees,40063,Services,5027,Garden waste subscription payments 2022/23 for Chorley and South Ribble,10/06/2022,0167936,750.33,Revenue,GoCardless,77457,,
Chorley Borough Council,http://statistics.data.gov.uk/id/local-authority/30UE,Central Support Services,1009,CUST - Customer & Digital,Professional Fees,40063,Services,5027,Garden waste subscription payments 2022/23 for Chorley and South Ribble,10/06/2022,0167938,712.07,Revenue,GoCardless,77457,,
Chorley Borough Council,http://statistics.data.gov.uk/id/local-authority/30UE,Central Support Services,1009,CUST - Customer & Digital,Professional Fees,40063,Services,5027,2021-2022 Garden Waste Subscription payments,10/06/2022,0167940,709.23,Revenue,GoCardless,77457,,
Chorley Borough Council,http://statistics.data.gov.uk/id/local-authority/30UE,Central Support Services,1009,CUST - Customer & Digital,Professional Fees,40063,Services,5027,2021-2022 Garden Waste Subscription payments,10/06/2022,0167941,709.23,Revenue,GoCardless,77457,,
Chorley Borough Council,http://statistics.data.gov.uk/id/local-authority/30UE,Central Support Services,1009,CUST - Customer & Digital,Professional Fees,40063,Services,5027,2021-2022 Garden Waste Subscription payments,10/06/2022,0167942,709.23,Revenue,GoCardless,77457,,
Chorley Borough Council,http://statistics.data.gov.uk/id/local-authority/30UE,Central Support Services,1009,CUST - Customer & Digital,Professional Fees,40063,Services,5027,2021-2022 Garden Waste Subscription payments,10/06/2022,0167943,708.63,Revenue,GoCardless,77457,,
Chorley Borough Council,http://statistics.data.gov.uk/id/local-authority/30UE,Capital,Capital,GROW - Commercial & Property,Other Capital Related Fees,03024,Capital Expenditure,Capital,Revised consulting fees for the market food (1498) area due to protracted council negotiation with existing tenants.,10/06/2022,0168065,643.00,Capital,Gosling Consulting Limited,78380,,
Chorley Borough Council,http://statistics.data.gov.uk/id/local-authority/30UE,Corporate Management,1008,GROW - Commercial & Property,Publicity - Advertising,40157,Miscellaneous Expenses,5034,Social media for Market Walk SHopping Centre Chorley. April - September 2022,17/06/2022,0168130,500.00,Revenue,Gravity,77837,,
Chorley Borough Council,http://statistics.data.gov.uk/id/local-authority/30UE,Democratic Represent and  Mgnt,1007,CUST - Customer & Digital,Playground Equipment,40008,"Equipment, Furniture & Materia",5023,2 x MIRA299-360 Seat 4 x Chain Length with Link to attach to new seats and fixings to attach to existing joints at top,17/06/2022,0167797,468.39,Revenue,Hags Smp LTD,22492,,
Chorley Borough Council,http://statistics.data.gov.uk/id/local-authority/30UE,Service Management & Support,1009,CUST - Customer & Digital,Supplies-Grounds Maintenance,40025,"Equipment, Furniture & Materia",5023,As per Quotation Q10986,24/06/2022,0168232,325.00,Revenue,Halse South West Ltd,76890,,
Chorley Borough Council,http://statistics.data.gov.uk/id/local-authority/30UE,Tourism,1039,GROW - Commercial & Property,Misc Expenses,40200,Miscellaneous Expenses,5034,25 Knitted Triangular Bunting 20cm(w) x 30cm(h) - 8in(w) x 12in(h) 20m Standard design  Platinum Jubilee ER70 Union (PJ03),24/06/2022,0168188,664.25,Revenue,Hampshire Flag Company,22296,,
Chorley Borough Council,http://statistics.data.gov.uk/id/local-authority/30UE,Service Management & Support,1009,CUST - Customer & Digital,Supplies-Grounds Maintenance,40025,"Equipment, Furniture & Materia",5023,Chorley Borough Printed Sack,24/06/2022,0168487,"7,177.05",Revenue,Harrisons Packaging Ltd,17555,,
Chorley Borough Council,http://statistics.data.gov.uk/id/local-authority/30UE,Central Support Services,1009,CUST - Customer & Digital,Computer Software-Purchase,40100,Communication and Computing,5028,"Access control hardware Door installation and configuration (including PM) Time recording licensing software, support and maint",24/06/2022,0168067,"5,412.00",Revenue,Hfx Ltd,17164,,
Chorley Borough Council,http://statistics.data.gov.uk/id/local-authority/30UE,Corporate Management,1008,EARL - Communities,External Contractor,40198,Miscellaneous Expenses,5034,Provision of Hoarding Advanced Training,17/06/2022,0168214,"1,500.00",Revenue,Hoarding Disorders UK CIC,81917,,
Chorley Borough Council,http://statistics.data.gov.uk/id/local-authority/30UE,Central Support Services,1009,CUST - Customer & Digital,Computer Equipment-Purchase,40098,Communication and Computing,5028,Process for Server Patch Testing Server Patch Release Process Baseline All Patch Levels,10/06/2022,0168102,"5,098.00",Revenue,Hybrit LLP,77925,,
Chorley Borough Council,http://statistics.data.gov.uk/id/local-authority/30UE,Corporate Management,1008,GOVN - Policy & Governance,Other Fees,40212,Miscellaneous Expenses,5034,Subsidy for the provision of a meals on wheels service in Chorley up to 24 April 2022,01/06/2022,0167502,"1,819.12",Revenue,I Care GB Ltd,77247,,
Chorley Borough Council,http://statistics.data.gov.uk/id/local-authority/30UE,Corporate Management,1008,GOVN - Policy & Governance,Other Fees,40212,Miscellaneous Expenses,5034,Subsidy for the provision of a Meals on Wheels service in Chorley up to 22 May 2022,10/06/2022,0168087,"2,068.50",Revenue,I Care GB Ltd,77247,,
Chorley Borough Council,http://statistics.data.gov.uk/id/local-authority/30UE,Capital,Capital,EARL - Communities,Sub Contractor,03008,Capital Expenditure,Capital,Fencing for the boundaries at Wigan Lane Playing Field.  to be complete on site by 16/5/22,24/06/2022,0168317,"8,748.90",Capital,I P Jones Fencing,21894,,
Chorley Borough Council,http://statistics.data.gov.uk/id/local-authority/30UE,Central Support Services,1009,CUST - Customer & Digital,Computer Software-Purchase,40100,Communication and Computing,5028,IDOX Year 1 of 5 Annual Charge for Uniform & Exacom (Chorley) System Upgrade Project charge for system merge,10/06/2022,0167280,"39,000.00",Revenue,IDOX Software Limited,17542,,
Chorley Borough Council,http://statistics.data.gov.uk/id/local-authority/30UE,Recreation & Sport,1037,GROW - Commercial & Property,Cleaning Materials,40019,"Equipment, Furniture & Materia",5023,G5 Battery,01/06/2022,0167793,260.00,Revenue,Imperative Training Limited T/A Defibshop,78355,,
Chorley Borough Council,http://statistics.data.gov.uk/id/local-authority/30UE,Unapportionable Central OHeads,1009,CUST - Customer & Digital,Professional Fees,14011,Direct Employee Expenses,5001,NAFN Annual Subscription for 2022/2023,10/06/2022,0167222,"1,600.00",Revenue,iNetwork (Tameside Council),19554,,
Chorley Borough Council,http://statistics.data.gov.uk/id/local-authority/30UE,Unapportionable Central OHeads,1009,GROW - Commercial & Property,Planned Maintenance,20006,Repairs Maintenance & Alts,5005,"Washroom service, medical waste collection for all council assets ",10/06/2022,0167479,"2,451.44",Revenue,Initial,78488,,
Chorley Borough Council,http://statistics.data.gov.uk/id/local-authority/30UE,Central Support Services,1009,EARL - Communities,External Contractor,40198,Miscellaneous Expenses,5034,Payment for consultancy work,24/06/2022,0168452,765.00,Revenue,J L Nelson Consultancy Ltd,84162,,
Chorley Borough Council,http://statistics.data.gov.uk/id/local-authority/30UE,Homelessness,1075,EARL - Communities,Grants - Tenant Participation,40142,Grants and Subscriptions,5031,Ukrainian Sponsorship 1,23/06/2022,0168236,711.50,Revenue,NAME REDACTED,85413,,
Chorley Borough Council,http://statistics.data.gov.uk/id/local-authority/30UE,Service Management & Support,1009,CUST - Customer & Digital,Vehicles and Plant Operating Lease,30029,Contrct Hire & Operating Lease,5018,12mths extension NV200 Panel Van PN15 YWB,10/06/2022,0167517,984.00,Revenue,Jcb Finance Ltd,17684,,
Chorley Borough Council,http://statistics.data.gov.uk/id/local-authority/30UE,Service Management & Support,1009,CUST - Customer & Digital,Vehicles and Plant Operating Lease,30029,Contrct Hire & Operating Lease,5018,12mths extension NV200 Panel Van PO15 VHD,10/06/2022,0167517,984.00,Revenue,Jcb Finance Ltd,17684,,
Chorley Borough Council,http://statistics.data.gov.uk/id/local-authority/30UE,Service Management & Support,1009,CUST - Customer & Digital,Vehicles and Plant Operating Lease,30029,Contrct Hire & Operating Lease,5018,12mths extension NV200 Panel Van PO15 VHE,10/06/2022,0167517,984.00,Revenue,Jcb Finance Ltd,17684,,
Chorley Borough Council,http://statistics.data.gov.uk/id/local-authority/30UE,Service Management & Support,1009,CUST - Customer & Digital,Vehicles and Plant Operating Lease,30029,Contrct Hire & Operating Lease,5018,12mths extension NV200 Panel Van PO15 VFZ,10/06/2022,0167517,984.00,Revenue,Jcb Finance Ltd,17684,,
Chorley Borough Council,http://statistics.data.gov.uk/id/local-authority/30UE,Service Management & Support,1009,CUST - Customer & Digital,Vehicles and Plant Operating Lease,30029,Contrct Hire & Operating Lease,5018,12mths extension NV200 Panel Van PO15 VHF,10/06/2022,0167517,984.00,Revenue,Jcb Finance Ltd,17684,,
Chorley Borough Council,http://statistics.data.gov.uk/id/local-authority/30UE,Business Support,1095,GROW - Commercial & Property,Tools & Equipment - Purchase,40003,"Equipment, Furniture & Materia",5023,For the maintenance and services provided at Primrose gardens,01/06/2022,0167729,333.09,Revenue,JLA Total Care LTD,78420,,
Chorley Borough Council,http://statistics.data.gov.uk/id/local-authority/30UE,Homelessness,1075,EARL - Communities,Grants - Tenant Participation,40142,Grants and Subscriptions,5031,Ukrainian Sponsorship 1,23/06/2022,0168241,322.00,Revenue,NAME REDACTED,85418,,
Chorley Borough Council,http://statistics.data.gov.uk/id/local-authority/30UE,Service Management & Support,1009,CUST - Customer & Digital,Protective Clothing,40040,"Clothing, Uniforms and Laundry",5025,"Quantity x 15- Size XL ST30 Disposable Hooded Coverall  � Type 5 and 6 for chemical splash and spray resistance, breathable ",24/06/2022,0168203,339.35,Revenue,Key Engineering & Hygene Supplies,51615,,
Chorley Borough Council,http://statistics.data.gov.uk/id/local-authority/30UE,Service Management & Support,1009,CUST - Customer & Digital,Protective Clothing,40040,"Clothing, Uniforms and Laundry",5025,,24/06/2022,0168203,43.74,Revenue,Key Engineering & Hygene Supplies,51615,,
Chorley Borough Council,http://statistics.data.gov.uk/id/local-authority/30UE,Service Management & Support,1009,CUST - Customer & Digital,Tools & Equipment - Hire,40004,"Equipment, Furniture & Materia",5023,To hire a small tractor/rotovator for two weeks (4th April - 18th April) deliver to Bengal St depot,17/06/2022,0167388,859.80,Revenue,KH Hire Ltd,78531,,
Chorley Borough Council,http://statistics.data.gov.uk/id/local-authority/30UE,Central Support Services,1009,GOVN - Policy & Governance,Publicity - Advertising,40157,Miscellaneous Expenses,5034,Item: Double page spread in Manchester edition,01/06/2022,0167712,"1,200.00",Revenue,Kingfisher Visitor Guides,78152,,
Chorley Borough Council,http://statistics.data.gov.uk/id/local-authority/30UE,Central Support Services,1009,GOVN - Policy & Governance,Publicity - Advertising,40157,Miscellaneous Expenses,5034,Item: Full page advert in Kingfisher Manchester 2022 book,01/06/2022,0167741,795.00,Revenue,Kingfisher Visitor Guides,78152,,
Chorley Borough Council,http://statistics.data.gov.uk/id/local-authority/30UE,Economic Development,1096,GROW - Commercial & Property,Promotional Expenses,40159,Miscellaneous Expenses,5034,Chorley Interchange: Meet & Greet Coach Visits to Chorley Markets April 21 - March 22 ,01/06/2022,0167728,480.00,Revenue,Lancashire County Council,17758,,
Chorley Borough Council,http://statistics.data.gov.uk/id/local-authority/30UE,Corporate Management,1008,GOVN - Policy & Governance,Other Contributions,40145,Grants and Subscriptions,5031,Shared bus services covering the period from April 2021 to March 2022,17/06/2022,0167781,"15,810.82",Revenue,Lancashire County Council,17758,,
Chorley Borough Council,http://statistics.data.gov.uk/id/local-authority/30UE,Capital,Capital,EARL - Communities,Grants,03002,Capital Expenditure,Capital,19/00135/DFG,10/06/2022,0168017,"7,651.88",Capital,Lancashire County Council,17758,,
Chorley Borough Council,http://statistics.data.gov.uk/id/local-authority/30UE,Capital,Capital,EARL - Communities,Grants,03002,Capital Expenditure,Capital,21/00055/CAG,10/06/2022,0168019,"1,950.13",Capital,Lancashire County Council,17758,,
Chorley Borough Council,http://statistics.data.gov.uk/id/local-authority/30UE,Capital,Capital,EARL - Communities,Grants,03002,Capital Expenditure,Capital,21/00150/DFG,10/06/2022,0168021,675.38,Capital,Lancashire County Council,17758,,
Chorley Borough Council,http://statistics.data.gov.uk/id/local-authority/30UE,Unapportionable Central OHeads,1009,GROW - Commercial & Property,General Repairs - Reactive,20004,Repairs Maintenance & Alts,5005,Community Centres   - Gas / Air Con / Plumbing  Reactive Repairs,17/06/2022,0168219,304.00,Revenue,Lancashire Gas Services Ltd,78192,,
Chorley Borough Council,http://statistics.data.gov.uk/id/local-authority/30UE,Unapportionable Central OHeads,1009,GROW - Commercial & Property,General Repairs - Reactive,20004,Repairs Maintenance & Alts,5005,Call out to fault on the air conditioning in the server room. Supply and install a replacement,24/06/2022,0168226,517.40,Revenue,Lancashire Gas Services Ltd,78192,,
Chorley Borough Council,http://statistics.data.gov.uk/id/local-authority/30UE,Unapportionable Central OHeads,1009,GROW - Commercial & Property,General Repairs - Reactive,20004,Repairs Maintenance & Alts,5005,Housing   - Gas / Air Con / Plumbing  Reactive Repairs,17/06/2022,0168271,361.00,Revenue,Lancashire Gas Services Ltd,78192,,
Chorley Borough Council,http://statistics.data.gov.uk/id/local-authority/30UE,Unapportionable Central OHeads,1009,GOVN - Policy & Governance,General Subscriptions,40146,Grants and Subscriptions,5031,Financial Intelligence Toolkit Subscription 2022/23,24/06/2022,0168316,"7,440.00",Revenue,LG Futures,22551,,
Chorley Borough Council,http://statistics.data.gov.uk/id/local-authority/30UE,Capital,Capital,GROW - Commercial & Property,Main Contractor,03007,Capital Expenditure,Capital,Project Management for Astley Restoration Project,17/06/2022,0167477,"2,300.00",Capital,Linchpin Ltd,80779,,
Chorley Borough Council,http://statistics.data.gov.uk/id/local-authority/30UE,Capital,Capital,GROW - Commercial & Property,Main Contractor,03007,Capital Expenditure,Capital,Project Management for Astley Restoration Project,17/06/2022,0167497,"2,350.00",Capital,Linchpin Ltd,80779,,
Chorley Borough Council,http://statistics.data.gov.uk/id/local-authority/30UE,Unapportionable Central OHeads,1009,GOVN - Policy & Governance,HR Approved Occ Health Fees,15201,Indirect Employee Expenses,5002,Counselling for Staff in April 2022,10/06/2022,0168136,320.00,Revenue,Livewell Counselling Service,63084,,
Chorley Borough Council,http://statistics.data.gov.uk/id/local-authority/30UE,Tourism,1039,GOVN - Policy & Governance,Publicity - Advertising,40157,Miscellaneous Expenses,5034,Item: full page ad in Colne Life Magazine,10/06/2022,0167783,300.00,Revenue,Loop Publishing Ltd,18770,,
Chorley Borough Council,http://statistics.data.gov.uk/id/local-authority/30UE,Unapportionable Central OHeads,1009,GOVN - Policy & Governance,Misc Expenses,40200,Miscellaneous Expenses,5034,Louby Lou Picnic in the Park Performance - Sunday 5 June 2022,10/06/2022,0167599,575.00,Revenue,Louby Lou Ltd,76335,,
Chorley Borough Council,http://statistics.data.gov.uk/id/local-authority/30UE,Corporate Management,1008,GROW - Commercial & Property,Exhibitions & Special Events,40158,Miscellaneous Expenses,5034,Fun Thursday Easter activities at Market Walk Shopping Centre Chorley as discussed,01/06/2022,0167784,550.00,Revenue,Louby Lou Ltd,76335,,
Chorley Borough Council,http://statistics.data.gov.uk/id/local-authority/30UE,Corporate Management,1008,GROW - Commercial & Property,Exhibitions & Special Events,40158,Miscellaneous Expenses,5034,Fun Thursday Easter activities at Market Walk Shopping Centre Chorley as discussed,01/06/2022,0167785,550.00,Revenue,Louby Lou Ltd,76335,,
Chorley Borough Council,http://statistics.data.gov.uk/id/local-authority/30UE,Homelessness,1075,EARL - Communities,Grants - Tenant Participation,40142,Grants and Subscriptions,5031,Ukrainian Sponsorship 1,23/06/2022,0168240,407.50,Revenue,NAME REDACTED,85417,,
Chorley Borough Council,http://statistics.data.gov.uk/id/local-authority/30UE,Corporate Management,1008,GOVN - Policy & Governance,Agency Staff,13000,Direct Employee Expenses,5001,NAME REDACTED,10/06/2022,0167561,584.73,Revenue,Matrix SCM Ltd,22128,,
Chorley Borough Council,http://statistics.data.gov.uk/id/local-authority/30UE,Corporate Management,1008,GOVN - Policy & Governance,Agency Staff,13000,Direct Employee Expenses,5001,NAME REDACTED,10/06/2022,0167598,470.72,Revenue,Matrix SCM Ltd,22128,,
Chorley Borough Council,http://statistics.data.gov.uk/id/local-authority/30UE,Corporate Management,1008,GOVN - Policy & Governance,Agency Staff,13000,Direct Employee Expenses,5001,NAME REDACTED,10/06/2022,0168026,606.80,Revenue,Matrix SCM Ltd,22128,,
Chorley Borough Council,http://statistics.data.gov.uk/id/local-authority/30UE,Corporate Management,1008,GOVN - Policy & Governance,Agency Staff,13000,Direct Employee Expenses,5001,Covid 19 staff,10/06/2022,0168166,584.72,Revenue,Matrix SCM Ltd,22128,,
Chorley Borough Council,http://statistics.data.gov.uk/id/local-authority/30UE,Central Support Services,1009,EARL - Communities,External Contractor,40198,Miscellaneous Expenses,5034,Env Health Food Business inspections,10/06/2022,0167918,955.00,Revenue,Matthew Cropper,85168,,
Chorley Borough Council,http://statistics.data.gov.uk/id/local-authority/30UE,Central Support Services,1009,CUST - Customer & Digital,Items For Resale,40027,"Equipment, Furniture & Materia",5023,Green lids for 240L wheeled bin. Quantity = 200,01/06/2022,0167677,"1,300.00",Revenue,MGB Plastics Ltd,18624,,
Chorley Borough Council,http://statistics.data.gov.uk/id/local-authority/30UE,Central Support Services,1009,CUST - Customer & Digital,Items For Resale,40027,"Equipment, Furniture & Materia",5023,Blue lids for 240L wheeled bins. Quantity = 100,01/06/2022,0167715,650.00,Revenue,MGB Plastics Ltd,18624,,
Chorley Borough Council,http://statistics.data.gov.uk/id/local-authority/30UE,Unapportionable Central OHeads,1009,GROW - Commercial & Property,General Repairs - Reactive,20004,Repairs Maintenance & Alts,5005,Car Parks  -  Drainage  Reactive Repairs,17/06/2022,0167597,350.00,Revenue,Michael Roe,78294,,
Chorley Borough Council,http://statistics.data.gov.uk/id/local-authority/30UE,Unapportionable Central OHeads,1009,GROW - Commercial & Property,General Repairs - Reactive,20004,Repairs Maintenance & Alts,5005,Car Parks  -  Drainage  Reactive Repairs,17/06/2022,0168255,280.00,Revenue,Michael Roe,78294,,
Chorley Borough Council,http://statistics.data.gov.uk/id/local-authority/30UE,Unapportionable Central OHeads,1009,GROW - Commercial & Property,General Repairs - Reactive,20004,Repairs Maintenance & Alts,5005,Community Centres   -  Drainage  Reactive Repairs,17/06/2022,0168256,280.00,Revenue,Michael Roe,78294,,
Chorley Borough Council,http://statistics.data.gov.uk/id/local-authority/30UE,Unapportionable Central OHeads,1009,GROW - Commercial & Property,General Repairs - Reactive,20004,Repairs Maintenance & Alts,5005,Community Centres   -  Drainage  Reactive Repairs,17/06/2022,0168257,280.00,Revenue,Michael Roe,78294,,
Chorley Borough Council,http://statistics.data.gov.uk/id/local-authority/30UE,Unapportionable Central OHeads,1009,GROW - Commercial & Property,General Repairs - Reactive,20004,Repairs Maintenance & Alts,5005,Community Centres   -  Drainage  Reactive Repairs,17/06/2022,0168258,280.00,Revenue,Michael Roe,78294,,
Chorley Borough Council,http://statistics.data.gov.uk/id/local-authority/30UE,Central Support Services,1009,EARL - Communities,External Contractor,40198,Miscellaneous Expenses,5034,Completion of Inspections for Chorley Council 11 full inspections 1 inspection where food no longer part of business,10/06/2022,0167348,625.00,Revenue,Mike Shaw,85149,,
Chorley Borough Council,http://statistics.data.gov.uk/id/local-authority/30UE,Capital,Capital,EARL - Communities,Grants,03002,Capital Expenditure,Capital,ADDRESS REDACTED ,17/06/2022,0168215,"4,795.02",Capital,Mint Northwest Ltd,65607,,
Chorley Borough Council,http://statistics.data.gov.uk/id/local-authority/30UE,Capital,Capital,EARL - Communities,Grants,03002,Capital Expenditure,Capital,ADDRESS REDACTED ,17/06/2022,0168277,"4,542.53",Capital,Mint Northwest Ltd,65607,,
Chorley Borough Council,http://statistics.data.gov.uk/id/local-authority/30UE,Planning Policy,1092,GROW - Commercial & Property,Legal Fees,40171,Miscellaneous Expenses,5034,"Drafting multiple legal documents, attending site visit advocacy at pre-trial review and two day final hearing ",10/06/2022,0168066,"20,511.79",Revenue,Miss Rebecca Cattermole,78532,,
Chorley Borough Council,http://statistics.data.gov.uk/id/local-authority/30UE,Service Management & Support,1009,CUST - Customer & Digital,Grounds Maintenance Contractor,20043,Grounds Maintenance Costs,5013,"To clean the memorial and surrounding walls and steps plus anti-algae treatment application Cenotaph, Astley Park",24/06/2022,0168368,735.00,Revenue,MJR Masonry Services,56017,,
Chorley Borough Council,http://statistics.data.gov.uk/id/local-authority/30UE,Private Sector HSG Renewal,1073,EARL - Communities,External Contractor,40198,Miscellaneous Expenses,5034,Ref 6340,10/06/2022,0167345,51.00,Revenue,Mobility Care Services,70841,,
Chorley Borough Council,http://statistics.data.gov.uk/id/local-authority/30UE,Private Sector HSG Renewal,1073,EARL - Communities,External Contractor,40198,Miscellaneous Expenses,5034,Ref 6213,10/06/2022,0167345,68.00,Revenue,Mobility Care Services,70841,,
Chorley Borough Council,http://statistics.data.gov.uk/id/local-authority/30UE,Private Sector HSG Renewal,1073,EARL - Communities,External Contractor,40198,Miscellaneous Expenses,5034,Ref 6214,10/06/2022,0167345,85.00,Revenue,Mobility Care Services,70841,,
Chorley Borough Council,http://statistics.data.gov.uk/id/local-authority/30UE,Private Sector HSG Renewal,1073,EARL - Communities,External Contractor,40198,Miscellaneous Expenses,5034,Ref 6215,10/06/2022,0167345,68.00,Revenue,Mobility Care Services,70841,,
Chorley Borough Council,http://statistics.data.gov.uk/id/local-authority/30UE,Private Sector HSG Renewal,1073,EARL - Communities,External Contractor,40198,Miscellaneous Expenses,5034,Ref 6216,10/06/2022,0167345,440.00,Revenue,Mobility Care Services,70841,,
Chorley Borough Council,http://statistics.data.gov.uk/id/local-authority/30UE,Private Sector HSG Renewal,1073,EARL - Communities,External Contractor,40198,Miscellaneous Expenses,5034,Ref 6217,10/06/2022,0167345,225.50,Revenue,Mobility Care Services,70841,,
Chorley Borough Council,http://statistics.data.gov.uk/id/local-authority/30UE,Private Sector HSG Renewal,1073,EARL - Communities,External Contractor,40198,Miscellaneous Expenses,5034,Ref 6218,10/06/2022,0167345,680.00,Revenue,Mobility Care Services,70841,,
Chorley Borough Council,http://statistics.data.gov.uk/id/local-authority/30UE,Private Sector HSG Renewal,1073,EARL - Communities,External Contractor,40198,Miscellaneous Expenses,5034,Ref 6220,10/06/2022,0167345,130.00,Revenue,Mobility Care Services,70841,,
Chorley Borough Council,http://statistics.data.gov.uk/id/local-authority/30UE,Private Sector HSG Renewal,1073,EARL - Communities,External Contractor,40198,Miscellaneous Expenses,5034,Ref 6223,10/06/2022,0167345,120.00,Revenue,Mobility Care Services,70841,,
Chorley Borough Council,http://statistics.data.gov.uk/id/local-authority/30UE,Private Sector HSG Renewal,1073,EARL - Communities,External Contractor,40198,Miscellaneous Expenses,5034,Ref 6225,10/06/2022,0167345,117.25,Revenue,Mobility Care Services,70841,,
Chorley Borough Council,http://statistics.data.gov.uk/id/local-authority/30UE,Private Sector HSG Renewal,1073,EARL - Communities,External Contractor,40198,Miscellaneous Expenses,5034,Ref 6226,10/06/2022,0167345,67.00,Revenue,Mobility Care Services,70841,,
Chorley Borough Council,http://statistics.data.gov.uk/id/local-authority/30UE,Private Sector HSG Renewal,1073,EARL - Communities,External Contractor,40198,Miscellaneous Expenses,5034,Ref 6230,10/06/2022,0167345,33.50,Revenue,Mobility Care Services,70841,,
Chorley Borough Council,http://statistics.data.gov.uk/id/local-authority/30UE,Private Sector HSG Renewal,1073,EARL - Communities,External Contractor,40198,Miscellaneous Expenses,5034,Ref 6248,10/06/2022,0167345,67.00,Revenue,Mobility Care Services,70841,,
Chorley Borough Council,http://statistics.data.gov.uk/id/local-authority/30UE,Private Sector HSG Renewal,1073,EARL - Communities,External Contractor,40198,Miscellaneous Expenses,5034,Ref 6254,10/06/2022,0167345,68.00,Revenue,Mobility Care Services,70841,,
Chorley Borough Council,http://statistics.data.gov.uk/id/local-authority/30UE,Private Sector HSG Renewal,1073,EARL - Communities,External Contractor,40198,Miscellaneous Expenses,5034,Ref 6255,10/06/2022,0167345,34.00,Revenue,Mobility Care Services,70841,,
Chorley Borough Council,http://statistics.data.gov.uk/id/local-authority/30UE,Private Sector HSG Renewal,1073,EARL - Communities,External Contractor,40198,Miscellaneous Expenses,5034,Ref 6256,10/06/2022,0167345,17.00,Revenue,Mobility Care Services,70841,,
Chorley Borough Council,http://statistics.data.gov.uk/id/local-authority/30UE,Private Sector HSG Renewal,1073,EARL - Communities,External Contractor,40198,Miscellaneous Expenses,5034,Ref 6279,10/06/2022,0167345,953.78,Revenue,Mobility Care Services,70841,,
Chorley Borough Council,http://statistics.data.gov.uk/id/local-authority/30UE,Private Sector HSG Renewal,1073,EARL - Communities,External Contractor,40198,Miscellaneous Expenses,5034,Ref 6285,10/06/2022,0167345,51.00,Revenue,Mobility Care Services,70841,,
Chorley Borough Council,http://statistics.data.gov.uk/id/local-authority/30UE,Private Sector HSG Renewal,1073,EARL - Communities,External Contractor,40198,Miscellaneous Expenses,5034,Ref 6300,10/06/2022,0167345,112.75,Revenue,Mobility Care Services,70841,,
Chorley Borough Council,http://statistics.data.gov.uk/id/local-authority/30UE,Private Sector HSG Renewal,1073,EARL - Communities,External Contractor,40198,Miscellaneous Expenses,5034,Ref 6301,10/06/2022,0167345,260.00,Revenue,Mobility Care Services,70841,,
Chorley Borough Council,http://statistics.data.gov.uk/id/local-authority/30UE,Private Sector HSG Renewal,1073,EARL - Communities,External Contractor,40198,Miscellaneous Expenses,5034,Ref 6302,10/06/2022,0167345,260.00,Revenue,Mobility Care Services,70841,,
Chorley Borough Council,http://statistics.data.gov.uk/id/local-authority/30UE,Private Sector HSG Renewal,1073,EARL - Communities,External Contractor,40198,Miscellaneous Expenses,5034,Ref 6307,10/06/2022,0167345,321.26,Revenue,Mobility Care Services,70841,,
Chorley Borough Council,http://statistics.data.gov.uk/id/local-authority/30UE,Private Sector HSG Renewal,1073,EARL - Communities,External Contractor,40198,Miscellaneous Expenses,5034,Ref 6313,10/06/2022,0167345,980.00,Revenue,Mobility Care Services,70841,,
Chorley Borough Council,http://statistics.data.gov.uk/id/local-authority/30UE,Private Sector HSG Renewal,1073,EARL - Communities,External Contractor,40198,Miscellaneous Expenses,5034,Ref 6314,10/06/2022,0167345,130.00,Revenue,Mobility Care Services,70841,,
Chorley Borough Council,http://statistics.data.gov.uk/id/local-authority/30UE,Private Sector HSG Renewal,1073,EARL - Communities,External Contractor,40198,Miscellaneous Expenses,5034,Ref 6316,10/06/2022,0167345,260.00,Revenue,Mobility Care Services,70841,,
Chorley Borough Council,http://statistics.data.gov.uk/id/local-authority/30UE,Private Sector HSG Renewal,1073,EARL - Communities,External Contractor,40198,Miscellaneous Expenses,5034,Ref 6317,10/06/2022,0167345,990.00,Revenue,Mobility Care Services,70841,,
Chorley Borough Council,http://statistics.data.gov.uk/id/local-authority/30UE,Private Sector HSG Renewal,1073,EARL - Communities,External Contractor,40198,Miscellaneous Expenses,5034,Ref 6318,10/06/2022,0167345,720.00,Revenue,Mobility Care Services,70841,,
Chorley Borough Council,http://statistics.data.gov.uk/id/local-authority/30UE,Private Sector HSG Renewal,1073,EARL - Communities,External Contractor,40198,Miscellaneous Expenses,5034,Ref 6319,10/06/2022,0167345,132.00,Revenue,Mobility Care Services,70841,,
Chorley Borough Council,http://statistics.data.gov.uk/id/local-authority/30UE,Private Sector HSG Renewal,1073,EARL - Communities,External Contractor,40198,Miscellaneous Expenses,5034,Ref 6320,10/06/2022,0167345,260.00,Revenue,Mobility Care Services,70841,,
Chorley Borough Council,http://statistics.data.gov.uk/id/local-authority/30UE,Private Sector HSG Renewal,1073,EARL - Communities,External Contractor,40198,Miscellaneous Expenses,5034,Ref 6321,10/06/2022,0167345,130.00,Revenue,Mobility Care Services,70841,,
Chorley Borough Council,http://statistics.data.gov.uk/id/local-authority/30UE,Private Sector HSG Renewal,1073,EARL - Communities,External Contractor,40198,Miscellaneous Expenses,5034,Ref 6324,10/06/2022,0167345,102.00,Revenue,Mobility Care Services,70841,,
Chorley Borough Council,http://statistics.data.gov.uk/id/local-authority/30UE,Private Sector HSG Renewal,1073,EARL - Communities,External Contractor,40198,Miscellaneous Expenses,5034,Ref 6325,10/06/2022,0167345,68.00,Revenue,Mobility Care Services,70841,,
Chorley Borough Council,http://statistics.data.gov.uk/id/local-authority/30UE,Private Sector HSG Renewal,1073,EARL - Communities,External Contractor,40198,Miscellaneous Expenses,5034,Ref 6336,10/06/2022,0167345,780.00,Revenue,Mobility Care Services,70841,,
Chorley Borough Council,http://statistics.data.gov.uk/id/local-authority/30UE,Capital,Capital,GROW - Commercial & Property,Other Contractor,03012,Capital Expenditure,Capital,"Market Walk- all works involved in the manufacture, supply and installation of a 4m x 1.5m structurally glazed canopy",10/06/2022,0166608,"6,920.00",Capital,Morgan Brothers Metalwork Solutions,76663,,
Chorley Borough Council,http://statistics.data.gov.uk/id/local-authority/30UE,Capital,Capital,GROW - Commercial & Property,Other Contractor,03012,Capital Expenditure,Capital,Steelwork & cladding in anodised finish ,10/06/2022,0168082,"10,000.00",Capital,Morgan Brothers Metalwork Solutions,76663,,
Chorley Borough Council,http://statistics.data.gov.uk/id/local-authority/30UE,Tourism,1039,GOVN - Policy & Governance,Misc Expenses,40200,Miscellaneous Expenses,5034,Jubilee payment,01/06/2022,0167883,560.00,Revenue,Mrs Jacqueline Dawn Wilson,85267,,
Chorley Borough Council,http://statistics.data.gov.uk/id/local-authority/30UE,Central Support Services,1009,CUST - Customer & Digital,Computer Equipment-Purchase,40098,Communication and Computing,5028,"TECHGEAR UTILITY Case fits iPad Air 4, HEAVY DUTY Armour Shockproof Case, Hand Strap and Shoulder Strap ",17/06/2022,0167270,469.40,Revenue,myPremier,84029,,
Chorley Borough Council,http://statistics.data.gov.uk/id/local-authority/30UE,Development Control,1091,PLAN - Planning & Development,Statutory Notices,40160,Miscellaneous Expenses,5034,Planning Public Notices to appear in the Chorley Guardian April 2022 to March 2023,10/06/2022,0167754,689.52,Revenue,National World Publishing Limited,20072,,
Chorley Borough Council,http://statistics.data.gov.uk/id/local-authority/30UE,Development Control,1091,PLAN - Planning & Development,Statutory Notices,40160,Miscellaneous Expenses,5034,Planning Public Notices to appear in the Chorley Guardian April 2022 to March 2023,10/06/2022,0168062,283.92,Revenue,National World Publishing Limited,20072,,
Chorley Borough Council,http://statistics.data.gov.uk/id/local-authority/30UE,Business Support,1095,GROW - Commercial & Property,Security Service,40062,Services,5027,To provide evening Site Security Services at Market Walk Shopping Centre from 5pm until midnight 7 days a week.,10/06/2022,0167551,661.50,Revenue,New Concept Security NW Ltd T/A New Concept Goup,80488,,
Chorley Borough Council,http://statistics.data.gov.uk/id/local-authority/30UE,Business Support,1095,GROW - Commercial & Property,Security Service,40062,Services,5027,To provide evening Site Security Services at Market Walk Shopping Centre from 5pm until midnight 7 days a week.,10/06/2022,0167788,661.50,Revenue,New Concept Security NW Ltd T/A New Concept Goup,80488,,
Chorley Borough Council,http://statistics.data.gov.uk/id/local-authority/30UE,Business Support,1095,GROW - Commercial & Property,Security Service,40062,Services,5027,To provide evening Site Security Services at Market Walk Shopping Centre from 5pm until midnight 7 days a week.,10/06/2022,0168101,661.50,Revenue,New Concept Security NW Ltd T/A New Concept Goup,80488,,
Chorley Borough Council,http://statistics.data.gov.uk/id/local-authority/30UE,Business Support,1095,GROW - Commercial & Property,Security Service,40062,Services,5027,To provide evening Site Security Services at Market Walk Shopping Centre from 5pm until midnight 7 days a week.,24/06/2022,0168444,659.70,Revenue,New Concept Security NW Ltd T/A New Concept Goup,80488,,
Chorley Borough Council,http://statistics.data.gov.uk/id/local-authority/30UE,Business Support,1095,GROW - Commercial & Property,Contract Catering,40038,Catering,5024,"Fairtrade Medium Roast Organic Arabica Coffee, Tate & Lyle 2kg Granulated Sugar, SingleHill Biscuits Mini Pack Selection",10/06/2022,0167697,325.38,Revenue,North West Tea FM Solutions,78255,,
Chorley Borough Council,http://statistics.data.gov.uk/id/local-authority/30UE,Business Support,1095,GROW - Commercial & Property,Contract Catering,40038,Catering,5024,del charge,10/06/2022,0167697,7.29,Revenue,North West Tea FM Solutions,78255,,
Chorley Borough Council,http://statistics.data.gov.uk/id/local-authority/30UE,Business Support,1095,GROW - Commercial & Property,Contract Catering,40038,Catering,5024,10 x NWT239  Millac Maid s/skimmed milk jiggers ,24/06/2022,0168403,59.90,Revenue,North West Tea FM Solutions,78255,,
Chorley Borough Council,http://statistics.data.gov.uk/id/local-authority/30UE,Business Support,1095,GROW - Commercial & Property,Contract Catering,40038,Catering,5024,8 x NWT3814 Hills Mini Pack biscuits ,24/06/2022,0168403,99.92,Revenue,North West Tea FM Solutions,78255,,
Chorley Borough Council,http://statistics.data.gov.uk/id/local-authority/30UE,Business Support,1095,GROW - Commercial & Property,Refreshments,40036,Catering,5024,4 x NWT084 Clipper Fairtrade coffee,24/06/2022,0168403,284.00,Revenue,North West Tea FM Solutions,78255,,
Chorley Borough Council,http://statistics.data.gov.uk/id/local-authority/30UE,Business Support,1095,GROW - Commercial & Property,Refreshments,40036,Catering,5024,4 x NWT235 Clipper Fairtrade every day teabags ,24/06/2022,0168403,103.96,Revenue,North West Tea FM Solutions,78255,,
Chorley Borough Council,http://statistics.data.gov.uk/id/local-authority/30UE,Business Support,1095,GROW - Commercial & Property,Refreshments,40036,Catering,5024,Carriage charge,24/06/2022,0168403,7.29,Revenue,North West Tea FM Solutions,78255,,
Chorley Borough Council,http://statistics.data.gov.uk/id/local-authority/30UE,Unapportionable Central OHeads,1009,GOVN - Policy & Governance,Exhibitions & Special Events,40158,Miscellaneous Expenses,5034,Portable toilet hire for Picnic in the Park Standard WC Disabled access with baby change Delivery & Collection,24/06/2022,0168407,355.00,Revenue,Northwest Portables,74432,,
Chorley Borough Council,http://statistics.data.gov.uk/id/local-authority/30UE,Recreation & Sport,1037,GROW - Commercial & Property,Electricity,20013,Energy Costs,5006,Brinscall baths,01/06/2022,0167949,"2,706.15",Revenue,Npower Commercial Gas,16814,,
Chorley Borough Council,http://statistics.data.gov.uk/id/local-authority/30UE,Central Support Services,1009,GROW - Commercial & Property,Electricity,20013,Energy Costs,5006,Westway sports hub,01/06/2022,0167953,951.04,Revenue,Npower Commercial Gas,16814,,
Chorley Borough Council,http://statistics.data.gov.uk/id/local-authority/30UE,Democratic Represent and  Mgnt,1007,GROW - Commercial & Property,Electricity,20013,Energy Costs,5006,All seasons,01/06/2022,0167967,"13,491.93",Revenue,Npower Commercial Gas,16814,,
Chorley Borough Council,http://statistics.data.gov.uk/id/local-authority/30UE,Business Support,1095,GROW - Commercial & Property,Electricity,20013,Energy Costs,5006,Strawberry fields digital hub,01/06/2022,0167970,"7,629.56",Revenue,Npower Commercial Gas,16814,,
Chorley Borough Council,http://statistics.data.gov.uk/id/local-authority/30UE,Recreation & Sport,1037,GROW - Commercial & Property,Electricity,20013,Energy Costs,5006,Clayton Green sports centre,01/06/2022,0167974,"2,208.85",Revenue,Npower Commercial Gas,16814,,
Chorley Borough Council,http://statistics.data.gov.uk/id/local-authority/30UE,Business Support,1095,GROW - Commercial & Property,Electricity,20013,Energy Costs,5006,"Landlord, primrose",01/06/2022,0167979,"2,798.51",Revenue,Npower Commercial Gas,16814,,
Chorley Borough Council,http://statistics.data.gov.uk/id/local-authority/30UE,Unapportionable Central OHeads,1009,GROW - Commercial & Property,Electricity,20013,Energy Costs,5006,Town Hall,01/06/2022,0167980,"5,521.51",Revenue,Npower Commercial Gas,16814,,
Chorley Borough Council,http://statistics.data.gov.uk/id/local-authority/30UE,Recreation & Sport,1037,GROW - Commercial & Property,Electricity,20013,Energy Costs,5006,Clayton Brook Village Hall,01/06/2022,0167982,295.92,Revenue,Npower Commercial Gas,16814,,
Chorley Borough Council,http://statistics.data.gov.uk/id/local-authority/30UE,Central Support Services,1009,GROW - Commercial & Property,Electricity,20013,Energy Costs,5006,Bengal Street,01/06/2022,0167986,"2,570.68",Revenue,Npower Commercial Gas,16814,,
Chorley Borough Council,http://statistics.data.gov.uk/id/local-authority/30UE,Central Support Services,1009,GROW - Commercial & Property,Electricity,20013,Energy Costs,5006,"Civic office, union street",01/06/2022,0167987,"7,001.36",Revenue,Npower Commercial Gas,16814,,
Chorley Borough Council,http://statistics.data.gov.uk/id/local-authority/30UE,Parking Services,1066,GROW - Commercial & Property,Electricity,20013,Energy Costs,5006,Friday Street,01/06/2022,0167993,544.69,Revenue,Npower Commercial Gas,16814,,
Chorley Borough Council,http://statistics.data.gov.uk/id/local-authority/30UE,Business Support,1095,GROW - Commercial & Property,Electricity,20013,Energy Costs,5006,Unit 2 Market walk extension,01/06/2022,0167995,"1,919.64",Revenue,Npower Commercial Gas,16814,,
Chorley Borough Council,http://statistics.data.gov.uk/id/local-authority/30UE,Parking Services,1066,GROW - Commercial & Property,Electricity,20013,Energy Costs,5006,Oak house car park,01/06/2022,0168015,896.90,Revenue,Npower Commercial Gas,16814,,
Chorley Borough Council,http://statistics.data.gov.uk/id/local-authority/30UE,Homelessness,1075,GROW - Commercial & Property,Electricity,20013,Energy Costs,5006,Cotswold house single storey wing,01/06/2022,0168016,293.87,Revenue,Npower Commercial Gas,16814,,
Chorley Borough Council,http://statistics.data.gov.uk/id/local-authority/30UE,Parking Services,1066,GROW - Commercial & Property,Electricity,20013,Energy Costs,5006,Car park union street,01/06/2022,0168018,"1,630.84",Revenue,Npower Commercial Gas,16814,,
Chorley Borough Council,http://statistics.data.gov.uk/id/local-authority/30UE,Homelessness,1075,GROW - Commercial & Property,Electricity,20013,Energy Costs,5006,Cotswold house two storey wing,01/06/2022,0168020,458.14,Revenue,Npower Commercial Gas,16814,,
Chorley Borough Council,http://statistics.data.gov.uk/id/local-authority/30UE,Homelessness,1075,GROW - Commercial & Property,Electricity,20013,Energy Costs,5006,Cotswold House Communal Rooms,01/06/2022,0168022,945.57,Revenue,Npower Commercial Gas,16814,,
Chorley Borough Council,http://statistics.data.gov.uk/id/local-authority/30UE,Business Support,1095,GROW - Commercial & Property,Electricity,20013,Energy Costs,5006,Landlords communal area market walk,01/06/2022,0168023,"1,195.86",Revenue,Npower Commercial Gas,16814,,
Chorley Borough Council,http://statistics.data.gov.uk/id/local-authority/30UE,Open Spaces,1038,GROW - Commercial & Property,Electricity,20013,Energy Costs,5006,Astley hall coach house,01/06/2022,0168041,"2,932.74",Revenue,Npower Commercial Gas,16814,,
Chorley Borough Council,http://statistics.data.gov.uk/id/local-authority/30UE,Democratic Represent and  Mgnt,1007,GROW - Commercial & Property,Electricity,20013,Energy Costs,5006,Eaves green road,01/06/2022,0168044,267.15,Revenue,Npower Commercial Gas,16814,,
Chorley Borough Council,http://statistics.data.gov.uk/id/local-authority/30UE,Open Spaces,1038,GROW - Commercial & Property,Electricity,20013,Energy Costs,5006,Astley hall coach house,01/06/2022,0168046,515.69,Revenue,Npower Commercial Gas,16814,,
Chorley Borough Council,http://statistics.data.gov.uk/id/local-authority/30UE,Service Management Support,1009,GROW - Commercial & Property,Electricity,20013,Energy Costs,5006,Astley farm,10/06/2022,0168167,448.66,Revenue,Npower Commercial Gas,16814,,
Chorley Borough Council,http://statistics.data.gov.uk/id/local-authority/30UE,Parking Services,1066,GROW - Commercial & Property,External Contractors,50008,Private Contractors,5042,Provision of Off Street Car Park Cash Collection & Enforcement � final year of contract 01.11.21 to 31.10.22,24/06/2022,0168411,"5,362.51",Revenue,NSL Limited,67253,,
Chorley Borough Council,http://statistics.data.gov.uk/id/local-authority/30UE,Service Management & Support,1009,CUST - Customer & Digital,Maintenance Street Furniture,20055,Grounds Maintenance Costs,5013,"Sand and varnish Memorial benches, Bowling Green, Astley Park",17/06/2022,0168190,275.00,Revenue,Nuchoice Limited,75454,,
Chorley Borough Council,http://statistics.data.gov.uk/id/local-authority/30UE,Homelessness,1075,EARL - Communities,Grants - Tenant Participation,40142,Grants and Subscriptions,5031,Ukrainian Sponsorship 1,23/06/2022,0168243,322.00,Revenue,NAME REDACTED,85420,,
Chorley Borough Council,http://statistics.data.gov.uk/id/local-authority/30UE,Service Management & Support,1009,CUST - Customer & Digital,Supplies - Workshop,40246,"Equipment, Furniture & Materia",5023,As per invoice 21166,24/06/2022,0168359,375.40,Revenue,P D M Components,19204,,
Chorley Borough Council,http://statistics.data.gov.uk/id/local-authority/30UE,Planning Policy,1092,EARL - Communities,Operational Employees Salaries,10000,Direct Employee Expenses,5001,Supply of agency staff to work on the Central Lancashire Local Plan,17/06/2022,0167946,"1,127.00",Revenue,Park Avenue Recruitment Ltd,82305,,
Chorley Borough Council,http://statistics.data.gov.uk/id/local-authority/30UE,Capital,Capital,EARL - Communities,Other Capital Grants/Loans,03000,Capital Expenditure,Capital,Final payment for 2021 / 22 development project,01/06/2022,0167934,"7,503.00",Capital,Parkwood Leisure,82926,,
Chorley Borough Council,http://statistics.data.gov.uk/id/local-authority/30UE,Economic Development,1096,GROW - Commercial & Property,Cleaning Materials,40019,"Equipment, Furniture & Materia",5023,Please supply cleaning products as per email,17/06/2022,0168139,324.62,Revenue,Pattersons Holdings (Bristol),77537,,
Chorley Borough Council,http://statistics.data.gov.uk/id/local-authority/30UE,Business Support,1095,GROW - Commercial & Property,Cleaning Materials,40019,"Equipment, Furniture & Materia",5023,"DISPOSABLE GLOVE POWDER, KENTUCKY MOP HEAD, MINI JUMBO ROLL, JANGRO LUXURY INTERLEAVED HAND ",17/06/2022,0168286,486.78,Revenue,Pattersons Holdings (Bristol),77537,,
Chorley Borough Council,http://statistics.data.gov.uk/id/local-authority/30UE,Culture & Heritage,1036,GOVN - Policy & Governance,Professional Fees,14011,Direct Employee Expenses,5001,2 hours per day (Saturday & Sunday) for the Astley Hall reopening weekend.,17/06/2022,0167944,400.00,Revenue,Paul Heyes Photographer,20909,,
Chorley Borough Council,http://statistics.data.gov.uk/id/local-authority/30UE,Unapportionable Central OHeads,1009,GOVN - Policy & Governance,Exhibitions & Special Events,40158,Miscellaneous Expenses,5034,Inflatable stage and sound equipment for Picnic in the Park. ,24/06/2022,0168420,"1,050.00",Revenue,Paul K Sound & Vision,16607,,
Chorley Borough Council,http://statistics.data.gov.uk/id/local-authority/30UE,Tourism,1039,GOVN - Policy & Governance,Misc Expenses,40200,Miscellaneous Expenses,5034,Supply Demonstration Kitchen for two days + Dismantle and rebuild A Taste of Chorley - Electrical Supply Assistance,24/06/2022,0168492,"2,000.00",Revenue,Paul K Sound & Vision,16607,,
Chorley Borough Council,http://statistics.data.gov.uk/id/local-authority/30UE,Unapportionable Central OHeads,1009,GOVN - Policy & Governance,HR Approved Occ Health Fees,15201,Indirect Employee Expenses,5002,Occupational Health charges for April 2022,10/06/2022,0168074,868.75,Revenue,People Asset Management Limited,76487,,
Chorley Borough Council,http://statistics.data.gov.uk/id/local-authority/30UE,Central Support Services,1009,CUST - Customer & Digital,Printing,40043,"Printing, Stationery & General",5026,Garden waste subscription permits 2022/23 for Chorley and South Ribble,17/06/2022,0167494,"21,376.54",Revenue,Permiserv Ltd,77202,,
Chorley Borough Council,http://statistics.data.gov.uk/id/local-authority/30UE,Unapportionable Central OHeads,1009,GOVN - Policy & Governance,HR Recruitment Expenses,15200,Indirect Employee Expenses,5002,Invoice 97108 - January 2022,17/06/2022,0168073,280.00,Revenue,Personnel Checks Ltd,81534,,
Chorley Borough Council,http://statistics.data.gov.uk/id/local-authority/30UE,Unapportionable Central OHeads,1009,GOVN - Policy & Governance,HR Recruitment Expenses,15200,Indirect Employee Expenses,5002,admin fee,17/06/2022,0168073,145.81,Revenue,Personnel Checks Ltd,81534,,
Chorley Borough Council,http://statistics.data.gov.uk/id/local-authority/30UE,Unapportionable Central OHeads,1009,GOVN - Policy & Governance,HR Recruitment Expenses,15200,Indirect Employee Expenses,5002,Invoice 85122 - October 2021,17/06/2022,0168075,440.00,Revenue,Personnel Checks Ltd,81534,,
Chorley Borough Council,http://statistics.data.gov.uk/id/local-authority/30UE,Unapportionable Central OHeads,1009,GOVN - Policy & Governance,HR Recruitment Expenses,15200,Indirect Employee Expenses,5002,admin,17/06/2022,0168075,229.13,Revenue,Personnel Checks Ltd,81534,,
Chorley Borough Council,http://statistics.data.gov.uk/id/local-authority/30UE,Unapportionable Central OHeads,1009,GOVN - Policy & Governance,HR Recruitment Expenses,15200,Indirect Employee Expenses,5002,Invoice 332318 - March 2022,17/06/2022,0168211,404.82,Revenue,Personnel Checks Ltd,81534,,
Chorley Borough Council,http://statistics.data.gov.uk/id/local-authority/30UE,Unapportionable Central OHeads,1009,GOVN - Policy & Governance,HR Recruitment Expenses,15200,Indirect Employee Expenses,5002,fee,17/06/2022,0168211,608.00,Revenue,Personnel Checks Ltd,81534,,
Chorley Borough Council,http://statistics.data.gov.uk/id/local-authority/30UE,Homelessness,1075,EARL - Communities,Grants - Tenant Participation,40142,Grants and Subscriptions,5031,Ukrainian Sponsorship 1,23/06/2022,0168247,361.50,Revenue,NAME REDACTED,85412,,
Chorley Borough Council,http://statistics.data.gov.uk/id/local-authority/30UE,Service Management & Support,1009,CUST - Customer & Digital,Supplies-Grounds Maintenance,40025,"Equipment, Furniture & Materia",5023,Supply 20 Peace Lilys 40 Ivy 40 White Begonias 20 Boston Ferns,17/06/2022,0168092,352.20,Revenue,Peter H Smith Limited,17088,,
Chorley Borough Council,http://statistics.data.gov.uk/id/local-authority/30UE,Service Management & Support,1009,CUST - Customer & Digital,Diesel/Derv,30007,Direct Transport Costs,5016,As per chest procurement 7000 litres of road diesel 2500 litres of gas oil,17/06/2022,0168249,"2,475.00",Revenue,Pilkington Oils,18075,,
Chorley Borough Council,http://statistics.data.gov.uk/id/local-authority/30UE,Service Management & Support,1009,CUST - Customer & Digital,Diesel/Derv,30007,Direct Transport Costs,5016,As per chest procurement 7000 litres of road diesel 2500 litres of gas oil,17/06/2022,0168250,"10,042.89",Revenue,Pilkington Oils,18075,,
Chorley Borough Council,http://statistics.data.gov.uk/id/local-authority/30UE,Development Control,1091,PLAN - Planning & Development,Professional Fees,40063,Services,5027,Planning Enforcement Services April 2022 to March 2023,10/06/2022,0167947,"1,026.00",Revenue,Planning and PACE Solutions Ltd,82083,,
Chorley Borough Council,http://statistics.data.gov.uk/id/local-authority/30UE,Development Control,1091,PLAN - Planning & Development,Professional Fees,40063,Services,5027,Planning Enforcement Services April 2022 to March 2023,17/06/2022,0168284,"1,083.00",Revenue,Planning and PACE Solutions Ltd,82083,,
Chorley Borough Council,http://statistics.data.gov.uk/id/local-authority/30UE,Development Control,1091,PLAN - Planning & Development,Professional Fees,40063,Services,5027,del,17/06/2022,0168284,7.65,Revenue,Planning and PACE Solutions Ltd,82083,,
Chorley Borough Council,http://statistics.data.gov.uk/id/local-authority/30UE,Business Support,1095,GROW - Commercial & Property,Misc Expenses,40200,Miscellaneous Expenses,5034,6 X PICNIC BENCHES PER YOUR QUOTATION 7TH APRIL,01/06/2022,0167664,"2,500.00",Revenue,Plastecowood Ltd,85151,,
Chorley Borough Council,http://statistics.data.gov.uk/id/local-authority/30UE,Central Support Services,1009,EARL - Communities,Other Contributions,40145,Grants and Subscriptions,5031,Chorley Council contribution towards Domestic Abuse Funding 2022/23,10/06/2022,0168141,"9,691.00",Revenue,Police & Crime Commissioner,17548,,
Chorley Borough Council,http://statistics.data.gov.uk/id/local-authority/30UE,Democratic Represent and  Mgnt,1007,EARL - Communities,Playground Equipment,40008,"Equipment, Furniture & Materia",5023,Sign Language Play Area signage. Mount supplied `Let`s Sign` signs x 8 onto Aluminium Composite back boards.,01/06/2022,0167572,391.78,Revenue,Poppy Signs Ltd,21898,,
Chorley Borough Council,http://statistics.data.gov.uk/id/local-authority/30UE,Unapportionable Central OHeads,1009,GOVN - Policy & Governance,Exhibitions & Special Events,40158,Miscellaneous Expenses,5034,2000 x 20pp A6 What`s Your Story Chorley? booklets ,17/06/2022,0168283,470.00,Revenue,Poppy Signs Ltd,21898,,
Chorley Borough Council,http://statistics.data.gov.uk/id/local-authority/30UE,Recreation & Sport,1037,GOVN - Policy & Governance,Performing Rights Society Fees,40148,Grants and Subscriptions,5031,Music Licence for the Lancastrian at Chorley Town Hall from 6th January 2022 to 5th April 2022. ,24/06/2022,0167920,457.47,Revenue,PPL PRS Ltd,77455,,
Chorley Borough Council,http://statistics.data.gov.uk/id/local-authority/30UE,Elections,1012,GOVN - Policy & Governance,Printing,40043,"Printing, Stationery & General",5026,Parish Election May 2022 - (8 Parishes)  Ballot Books,24/06/2022,0168339,"1,491.50",Revenue,Print Image Network,21171,,
Chorley Borough Council,http://statistics.data.gov.uk/id/local-authority/30UE,Democratic Represent and  Mgnt,1007,GOVN - Policy & Governance,Member Development Programme,17007,Indirect Employee Expenses,5002,Coach Tour for New Member Induction Day on Thursday 12th May 2022.,01/06/2022,0167951,295.00,Revenue,R S Tyrer Ltd,16255,,
Chorley Borough Council,http://statistics.data.gov.uk/id/local-authority/30UE,Regulatory Services,1048,PLAN - Planning & Development,Taxi Testing & Vehicle Safety Report,40234,Services,5027,taxi testing,10/06/2022,0168171,518.80,Revenue,R.C.J Motors,63625,,
Chorley Borough Council,http://statistics.data.gov.uk/id/local-authority/30UE,Regulatory Services,1048,PLAN - Planning & Development,Taxi Testing & Vehicle Safety Report,40234,Services,5027,Taxi testing,24/06/2022,0168486,583.65,Revenue,R.C.J Motors,63625,,
Chorley Borough Council,http://statistics.data.gov.uk/id/local-authority/30UE,Unapportionable Central OHeads,1009,GOVN - Policy & Governance,Exhibitions & Special Events,40158,Miscellaneous Expenses,5034,Meet and Greet with Paddington Bear for Picnic in the Park at Astley park on Sunday 5 June 11am-3pm,10/06/2022,0167492,"2,195.00",Revenue,Rainbow Productions Ltd,21858,,
Chorley Borough Council,http://statistics.data.gov.uk/id/local-authority/30UE,Business Support,1095,GOVN - Policy & Governance,Promotional Expenses,40159,Miscellaneous Expenses,5034,Linked In Promotion and google ad-word support for Strawberry Fields Digital Hub ,10/06/2022,0166295,"1,340.08",Revenue,Reach Publishing Services LTD,20559,,
Chorley Borough Council,http://statistics.data.gov.uk/id/local-authority/30UE,Business Support,1095,GOVN - Policy & Governance,Promotional Expenses,40159,Miscellaneous Expenses,5034,Linked In Promotion and google ad-word support for Strawberry Fields Digital Hub ,10/06/2022,0167018,"1,262.40",Revenue,Reach Publishing Services LTD,20559,,
Chorley Borough Council,http://statistics.data.gov.uk/id/local-authority/30UE,Business Support,1095,GOVN - Policy & Governance,Promotional Expenses,40159,Miscellaneous Expenses,5034,Linked In Promotion and google ad-word support for Strawberry Fields Digital Hub ,10/06/2022,0168053,"1,180.58",Revenue,Reach Publishing Services LTD,20559,,
Chorley Borough Council,http://statistics.data.gov.uk/id/local-authority/30UE,Business Support,1095,GOVN - Policy & Governance,Promotional Expenses,40159,Miscellaneous Expenses,5034,Linked In Promotion and google ad-word support for Strawberry Fields Digital Hub ,10/06/2022,0168142,601.74,Revenue,Reach Publishing Services LTD,20559,,
Chorley Borough Council,http://statistics.data.gov.uk/id/local-authority/30UE,Homelessness,1075,EARL - Communities,Grants - Tenant Participation,40142,Grants and Subscriptions,5031,Ukrainian Sponsorship 1,23/06/2022,0168244,442.00,Revenue,NAME REDACTED,85421,,
Chorley Borough Council,http://statistics.data.gov.uk/id/local-authority/30UE,Democratic Represent and  Mgnt,1007,CUST - Customer & Digital,Supplies-Grounds Maintenance,40025,"Equipment, Furniture & Materia",5023,Supply 2kg Rainbow Annuals. Deliver to Bengal St,10/06/2022,0166601,353.40,Revenue,Rigby Taylor Ltd,16299,,
Chorley Borough Council,http://statistics.data.gov.uk/id/local-authority/30UE,Central Support Services,1009,GROW - Commercial & Property,Professional Fees,40063,Services,5027,Marketing fees for council commercial property from May 2022 to April 2023,24/06/2022,0168412,570.00,Revenue,Rightmove Group Ltd,77717,,
Chorley Borough Council,http://statistics.data.gov.uk/id/local-authority/30UE,Tourism,1039,GOVN - Policy & Governance,Misc Expenses,40200,Miscellaneous Expenses,5034,Jubilee payment,01/06/2022,0167901,508.00,Revenue,Rivington Foundation Primary School Fund Account,85285,,
Chorley Borough Council,http://statistics.data.gov.uk/id/local-authority/30UE,Tourism,1039,GOVN - Policy & Governance,Misc Expenses,40200,Miscellaneous Expenses,5034,Jubilee payment,01/06/2022,0167902,400.00,Revenue,Rivington Heritage Trust,85286,,
Chorley Borough Council,http://statistics.data.gov.uk/id/local-authority/30UE,Capital,Capital,GOVN - Policy & Governance,Main Contractor,03007,Capital Expenditure,Capital,Ross Hutchinson - Smashed it glasswork.1x Bespoke terrarium 12 sided to provided brief.1x Purchase of existing terrarium (Hall),01/06/2022,0167931,460.00,Capital,Ross Hutchinson,85204,,
Chorley Borough Council,http://statistics.data.gov.uk/id/local-authority/30UE,Elections,1012,GOVN - Policy & Governance,Postages,40082,Communication and Computing,5028,Postal vote returns - 5 May 2022 borough elections,01/06/2022,0167952,"4,847.04",Revenue,Royal Mail Group Plc,17522,,
Chorley Borough Council,http://statistics.data.gov.uk/id/local-authority/30UE,Elections,1012,GOVN - Policy & Governance,Postages,40082,Communication and Computing,5028,Postal vote returns - 5 May 2022 borough elections,01/06/2022,0167955,"1,406.92",Revenue,Royal Mail Group Plc,17522,,
Chorley Borough Council,http://statistics.data.gov.uk/id/local-authority/30UE,Service Management & Support,1009,CUST - Customer & Digital,Vehicles and Plant Operating Lease,30029,Contrct Hire & Operating Lease,5018,Rental for 9 mths 26.01.22 - 26.10.22 PO16 HNK,17/06/2022,0168292,"2,600.00",Revenue,SG EQUIPMENT FINANCE LTD,18156,,
Chorley Borough Council,http://statistics.data.gov.uk/id/local-authority/30UE,Service Management & Support,1009,CUST - Customer & Digital,Vehicles and Plant Operating Lease,30029,Contrct Hire & Operating Lease,5018,Rental for 9 mths 26.01.22 - 26.10.22 PO16 HNL,17/06/2022,0168292,"2,600.00",Revenue,SG EQUIPMENT FINANCE LTD,18156,,
Chorley Borough Council,http://statistics.data.gov.uk/id/local-authority/30UE,Service Management & Support,1009,CUST - Customer & Digital,Vehicles and Plant Operating Lease,30029,Contrct Hire & Operating Lease,5018,Rental for 9 mths 26.01.22 - 26.10.22 PO16 HNM,17/06/2022,0168292,"2,600.00",Revenue,SG EQUIPMENT FINANCE LTD,18156,,
Chorley Borough Council,http://statistics.data.gov.uk/id/local-authority/30UE,Democratic Represent and  Mgnt,1007,CUST - Customer & Digital,Playground Equipment,40008,"Equipment, Furniture & Materia",5023,Repair the gate Longfield ave Coppull and the Stainless Steel pole Spurrer Square,17/06/2022,0168144,360.00,Revenue,SM Sheet Metal Ltd,21243,,
Chorley Borough Council,http://statistics.data.gov.uk/id/local-authority/30UE,Service Management & Support,1009,CUST - Customer & Digital,Protective Clothing,40040,"Clothing, Uniforms and Laundry",5025,Quantity x 40 Size XL -OGL-2034 Nitrile Disposable Gloves ,10/06/2022,0167922,298.00,Revenue,SMI Int Group Ltd,80945,,
Chorley Borough Council,http://statistics.data.gov.uk/id/local-authority/30UE,Central Support Services,1009,GOVN - Policy & Governance,Service Fees to other Local Authorities,40076,Services,5027,Q4 Recharges for 2021/22,01/06/2022,0167798,"710,133.88",Revenue,South Ribble Borough Council,17889,,
Chorley Borough Council,http://statistics.data.gov.uk/id/local-authority/30UE,Corporate Management,1008,EARL - Communities,Grants to Voluntary Organisations,40124,Grants and Subscriptions,5031,"Ongoing Food and Essential Support for families and individuals, includes cooking classes, supermarket voucher scheme, food banks and local market voucher schemes

--

Mental Health Support � bespoke sessions",17/06/2022,0168194,"10,000.00",Revenue,St Laurence`s PCC,17814,,
Chorley Borough Council,http://statistics.data.gov.uk/id/local-authority/30UE,Capital,Capital,EARL - Communities,Grants,03002,Capital Expenditure,Capital,ADDRESS REDACTED,17/06/2022,0168216,"3,061.00",Capital,Stannah Lift Services Ltd,80943,,
Chorley Borough Council,http://statistics.data.gov.uk/id/local-authority/30UE,Capital,Capital,GOVN - Policy & Governance,Other Capital Related Fees,03024,Capital Expenditure,Capital,Purchase of ADDRESS REDACTED,24/06/2022,0168497,"170,000.00",Capital,Stephen Howard Carter and Anne Veronica Carter,85431,,
Chorley Borough Council,http://statistics.data.gov.uk/id/local-authority/30UE,Capital,Capital,EARL - Communities,Main Contractor,03007,Capital Expenditure,Capital,Wigan Lane Design of Archery / Sports Facility RIBA stages 1 - 3 as set out in quotation,01/06/2022,0167723,"13,075.00",Capital,Steve Wells Associates Ltd,77157,,
Chorley Borough Council,http://statistics.data.gov.uk/id/local-authority/30UE,Homelessness,1075,EARL - Communities,Grants - Tenant Participation,40142,Grants and Subscriptions,5031,Ukrainian Sponsorship 1,23/06/2022,0168238,522.50,Revenue,NAME REDACTED,85415,,
Chorley Borough Council,http://statistics.data.gov.uk/id/local-authority/30UE,Parking Services,1066,GROW - Commercial & Property,Consultants` Fees,40077,Services,5027,Provision of Public Realm & Highway Design Engineering services 01 April 22 - 30 June 22 ,10/06/2022,0168098,"3,511.35",Revenue,Street Civil Engineering Limited,76750,,
Chorley Borough Council,http://statistics.data.gov.uk/id/local-authority/30UE,Parking Services,1066,GROW - Commercial & Property,Consultants` Fees,40077,Services,5027,Provision of Public Realm & Highway Design Engineering services 01 April 22 - 30 June 22 ,24/06/2022,0168315,"3,160.22",Revenue,Street Civil Engineering Limited,76750,,
Chorley Borough Council,http://statistics.data.gov.uk/id/local-authority/30UE,Capital,Capital,EARL - Communities,Grants,03002,Capital Expenditure,Capital,ADDRESS REDACTED,10/06/2022,0167645,"4,200.00",Capital,Stringfellow Bldg Cntrctrs Ltd,17893,,
Chorley Borough Council,http://statistics.data.gov.uk/id/local-authority/30UE,Unapportionable Central OHeads,1009,GROW - Commercial & Property,General Repairs - Reactive,20004,Repairs Maintenance & Alts,5005,"LaTo strip and dispose of site compound, asbestos roof garage, fly tipped asbestos and pile of logs, debris",17/06/2022,0168223,"2,200.00",Revenue,Stringfellow Bldg Cntrctrs Ltd,17893,,
Chorley Borough Council,http://statistics.data.gov.uk/id/local-authority/30UE,Unapportionable Central OHeads,1009,GROW - Commercial & Property,General Repairs - Reactive,20004,Repairs Maintenance & Alts,5005,Cemetery Store Lintel To erect scaffold platform. Reuse the existing angle iron and rebuild the brickwork above the store ,17/06/2022,0168224,"1,650.00",Revenue,Stringfellow Bldg Cntrctrs Ltd,17893,,
Chorley Borough Council,http://statistics.data.gov.uk/id/local-authority/30UE,Unapportionable Central OHeads,1009,GROW - Commercial & Property,General Repairs - Reactive,20004,Repairs Maintenance & Alts,5005,ADDRESS REDACTED Provide step and handrails as per quote,17/06/2022,0168280,710.00,Revenue,Stringfellow Bldg Cntrctrs Ltd,17893,,
Chorley Borough Council,http://statistics.data.gov.uk/id/local-authority/30UE,Democratic Represent and  Mgnt,1007,GOVN - Policy & Governance,Member Development Programme,17007,Indirect Employee Expenses,5002,Catering for Planning in Practice Event- Wednesday 2 March 2022,17/06/2022,0166998,341.43,Revenue,Style Catering,66901,,
Chorley Borough Council,http://statistics.data.gov.uk/id/local-authority/30UE,Service Management & Support,1009,CUST - Customer & Digital,Refuse Collection,20037,Cleaning and Domestic Supplies,5012,Exchange 20 yard Street Sweeping Skip to cover period  01/04/2022 - 31/03/2023,17/06/2022,0168279,"1,700.16",Revenue,SUEZ R&R UK LTD,17615,,
Chorley Borough Council,http://statistics.data.gov.uk/id/local-authority/30UE,Service Management & Support,1009,CUST - Customer & Digital,Refuse Collection,20037,Cleaning and Domestic Supplies,5012,Exchange 35 yard General Waste Skip to cover period  01/04/2022 - 31/03/2023,17/06/2022,0168279,899.40,Revenue,SUEZ R&R UK LTD,17615,,
Chorley Borough Council,http://statistics.data.gov.uk/id/local-authority/30UE,Central Support Services,1009,EARL - Communities,Misc Expenses,40200,Miscellaneous Expenses,5034,Provision of skip on Saturday 21st May at Bretherton Recreation Ground,24/06/2022,0168282,326.96,Revenue,SUEZ R&R UK LTD,17615,,
Chorley Borough Council,http://statistics.data.gov.uk/id/local-authority/30UE,Economic Development,1096,GROW - Commercial & Property,Refuse Collection,20037,Cleaning and Domestic Supplies,5012,Market Walk/Market Walk Extension/Markets/Calico Lounge/Reel Cinema Waste Removal 01.04.2022 ,24/06/2022,0168322,"2,260.26",Revenue,SUEZ R&R UK LTD,17615,,
Chorley Borough Council,http://statistics.data.gov.uk/id/local-authority/30UE,Economic Development,1096,GROW - Commercial & Property,Refuse Collection,20037,Cleaning and Domestic Supplies,5012,Market Walk YARD 1 - GENERAL WASTE (Market Walk) - 8 cubic yard FEL skip ,24/06/2022,0168322,241.77,Revenue,SUEZ R&R UK LTD,17615,,
Chorley Borough Council,http://statistics.data.gov.uk/id/local-authority/30UE,Economic Development,1096,GROW - Commercial & Property,Refuse Collection,20037,Cleaning and Domestic Supplies,5012,Market Walk YARD 1 - CARDBOARD ONLY - 35 cubic yard RoRo skip ,24/06/2022,0168322,25.00,Revenue,SUEZ R&R UK LTD,17615,,
Chorley Borough Council,http://statistics.data.gov.uk/id/local-authority/30UE,Business Support,1095,GROW - Commercial & Property,Refuse Collection,20037,Cleaning and Domestic Supplies,5012,Market Walk YARD 2 - CARDBOARD ONLY - 35 cubic yard RoRo skip ,24/06/2022,0168322,25.00,Revenue,SUEZ R&R UK LTD,17615,,
Chorley Borough Council,http://statistics.data.gov.uk/id/local-authority/30UE,Business Support,1095,GROW - Commercial & Property,Refuse Collection,20037,Cleaning and Domestic Supplies,5012,Market Walk YARD 2 - GENERAL WASTE - 8 cubic yard FEL skip ,24/06/2022,0168322,242.64,Revenue,SUEZ R&R UK LTD,17615,,
Chorley Borough Council,http://statistics.data.gov.uk/id/local-authority/30UE,Business Support,1095,GROW - Commercial & Property,Refuse Collection,20037,Cleaning and Domestic Supplies,5012,Market Walk YARD 3 - GENERAL WASTE - 8 cubic yard FEL skip ,24/06/2022,0168322,485.29,Revenue,SUEZ R&R UK LTD,17615,,
Chorley Borough Council,http://statistics.data.gov.uk/id/local-authority/30UE,Business Support,1095,GROW - Commercial & Property,Refuse Collection,20037,Cleaning and Domestic Supplies,5012,Market Walk YARD 3 - CARDBOARD ONLY - 35 cubic yard RoRo skip,24/06/2022,0168322,25.00,Revenue,SUEZ R&R UK LTD,17615,,
Chorley Borough Council,http://statistics.data.gov.uk/id/local-authority/30UE,Business Support,1095,GROW - Commercial & Property,Refuse Collection,20037,Cleaning and Domestic Supplies,5012,Market Walk YARD 3 - PLASTIC FILM - 35 cubic yard RoRo skip,24/06/2022,0168322,25.00,Revenue,SUEZ R&R UK LTD,17615,,
Chorley Borough Council,http://statistics.data.gov.uk/id/local-authority/30UE,Business Support,1095,GROW - Commercial & Property,Refuse Collection,20037,Cleaning and Domestic Supplies,5012,Market Walk YARD 3 - CARDBOARD ONLY - 12 cubic yard Bakkie cage ,24/06/2022,0168322,54.17,Revenue,SUEZ R&R UK LTD,17615,,
Chorley Borough Council,http://statistics.data.gov.uk/id/local-authority/30UE,Business Support,1095,GROW - Commercial & Property,Refuse Collection,20037,Cleaning and Domestic Supplies,5012,"Market Walk Ext, Chorley PR7 1FD - GENERAL WASTE - Euro 1100 Litre",24/06/2022,0168322,320.82,Revenue,SUEZ R&R UK LTD,17615,,
Chorley Borough Council,http://statistics.data.gov.uk/id/local-authority/30UE,Business Support,1095,GROW - Commercial & Property,Refuse Collection,20037,Cleaning and Domestic Supplies,5012,"Market Walk Ext, Chorley PR7 1FD - MIXED RECYCLING - Euro 1100 Litre ",24/06/2022,0168322,187.45,Revenue,SUEZ R&R UK LTD,17615,,
Chorley Borough Council,http://statistics.data.gov.uk/id/local-authority/30UE,Business Support,1095,GROW - Commercial & Property,Refuse Collection,20037,Cleaning and Domestic Supplies,5012,"Market Walk Ext, Chorley PR7 1FD - GLASS ONLY - 240 Litre bins ",24/06/2022,0168322,97.88,Revenue,SUEZ R&R UK LTD,17615,,
Chorley Borough Council,http://statistics.data.gov.uk/id/local-authority/30UE,Business Support,1095,GROW - Commercial & Property,Refuse Collection,20037,Cleaning and Domestic Supplies,5012,"Calico Lounge, Market Walk, Chorley, PR7 1FD - GENERAL WASTE - Euro 1100 Litre bins ",24/06/2022,0168322,226.03,Revenue,SUEZ R&R UK LTD,17615,,
Chorley Borough Council,http://statistics.data.gov.uk/id/local-authority/30UE,Business Support,1095,GROW - Commercial & Property,Refuse Collection,20037,Cleaning and Domestic Supplies,5012,"Calico Lounge, Market Walk, Chorley, PR7 1FD - MIXED RECYCLING - Euro 1100 Litre bins",24/06/2022,0168322,66.03,Revenue,SUEZ R&R UK LTD,17615,,
Chorley Borough Council,http://statistics.data.gov.uk/id/local-authority/30UE,Business Support,1095,GROW - Commercial & Property,Refuse Collection,20037,Cleaning and Domestic Supplies,5012,"Calico Lounge, Market Walk, Chorley, PR7 1FD - GLASS ONLY - 240 Litre bins ",24/06/2022,0168322,65.25,Revenue,SUEZ R&R UK LTD,17615,,
Chorley Borough Council,http://statistics.data.gov.uk/id/local-authority/30UE,Business Support,1095,GROW - Commercial & Property,Refuse Collection,20037,Cleaning and Domestic Supplies,5012,REEL Cinema - GENERAL WASTE - Euro 1100 Litre bins ,24/06/2022,0168322,301.37,Revenue,SUEZ R&R UK LTD,17615,,
Chorley Borough Council,http://statistics.data.gov.uk/id/local-authority/30UE,Business Support,1095,GROW - Commercial & Property,Refuse Collection,20037,Cleaning and Domestic Supplies,5012,REEL Cinema - MIXED RECYCLING - Euro 1100 Litre bins ,24/06/2022,0168322,88.04,Revenue,SUEZ R&R UK LTD,17615,,
Chorley Borough Council,http://statistics.data.gov.uk/id/local-authority/30UE,Business Support,1095,GROW - Commercial & Property,Refuse Collection,20037,Cleaning and Domestic Supplies,5012,Any excess weight charges for skips & FELS,24/06/2022,0168322,120.56,Revenue,SUEZ R&R UK LTD,17615,,
Chorley Borough Council,http://statistics.data.gov.uk/id/local-authority/30UE,Capital,Capital,GOVN - Policy & Governance,Main Contractor,03007,Capital Expenditure,Capital,match off against credit,01/06/2022,0166997,"6,090.00",Capital,Sun X Ltd,76454,,
Chorley Borough Council,http://statistics.data.gov.uk/id/local-authority/30UE,Capital,Capital,GOVN - Policy & Governance,Main Contractor,03007,Capital Expenditure,Capital,To manufacture & fit 5 no. side chain blinds in Quad 3% Bronze & 5 No. in Banlight Vanilla to the Great Hall Bay Vanilla ,01/06/2022,0167732,"4,970.00",Capital,Sun X Ltd,76454,,
Chorley Borough Council,http://statistics.data.gov.uk/id/local-authority/30UE,Homelessness,1075,EARL - Communities,Grants - Tenant Participation,40142,Grants and Subscriptions,5031,Ukrainian Sponsorship 1,23/06/2022,0168245,333.50,Revenue,NAME REDACTED,85422,,
Chorley Borough Council,http://statistics.data.gov.uk/id/local-authority/30UE,Central Support Services,1009,GROW - Commercial & Property,Professional Fees,40063,Services,5027,Disruption Compensation - Tatton Gardens Development,17/06/2022,0168248,"3,000.00",Revenue,Tatton Nursery,77934,,
Chorley Borough Council,http://statistics.data.gov.uk/id/local-authority/30UE,Planning Policy,1092,GROW - Commercial & Property,Professional Fees,40063,Services,5027,Highways and Transport Strategy for Chorley (Stages 2 and 3),24/06/2022,0167956,"6,926.00",Revenue,Tetra Tech Environment Planning Transport Limited,76236,,
Chorley Borough Council,http://statistics.data.gov.uk/id/local-authority/30UE,Elections,1012,GOVN - Policy & Governance,Training Course Fees,17010,Indirect Employee Expenses,5002,Polling Station online staff training,24/06/2022,0168145,"1,826.00",Revenue,The Association Of Electoral Administrators,16344,,
Chorley Borough Council,http://statistics.data.gov.uk/id/local-authority/30UE,Central Support Services,1009,GOVN - Policy & Governance,Copyright Licence Fees,40168,Miscellaneous Expenses,5034,From 1st May 2022 to 30th April 2023.,24/06/2022,0168146,"1,132.23",Revenue,The Copyright Licensing Agency Ltd,17480,,
Chorley Borough Council,http://statistics.data.gov.uk/id/local-authority/30UE,Business Support,1095,GROW - Commercial & Property,Security Service,40062,Services,5027,Security service at Strawberry Fields Digital Hub between April 2022 to end of September 2022,24/06/2022,0168311,"7,661.45",Revenue,The ExcluSec Group Ltd,78056,,
Chorley Borough Council,http://statistics.data.gov.uk/id/local-authority/30UE,Central Support Services,1009,GROW - Commercial & Property,Agency Staff,13000,Direct Employee Expenses,5001,Estate surveyor fees for NAME REDACTED,24/06/2022,0168220,"2,400.00",Revenue,The Oyster Partnership Ltd,81409,,
Chorley Borough Council,http://statistics.data.gov.uk/id/local-authority/30UE,Culture & Heritage,1036,GOVN - Policy & Governance,Exhibitions & Special Events,40158,Miscellaneous Expenses,5034,Printing for full Behind the Render Exhibition,10/06/2022,0168083,"1,249.00",Revenue,The Print Quarter,17987,,
Chorley Borough Council,http://statistics.data.gov.uk/id/local-authority/30UE,Elections,1012,GOVN - Policy & Governance,Publications,40054,"Printing, Stationery & General",5026,Schofields election law 63,01/06/2022,0166847,314.00,Revenue,Thomson Reuters RE;Sweet & Maxwell Limited,17932,,
Chorley Borough Council,http://statistics.data.gov.uk/id/local-authority/30UE,Elections,1012,GOVN - Policy & Governance,Publications,40054,"Printing, Stationery & General",5026,schofields election law update 64,24/06/2022,0168347,314.00,Revenue,Thomson Reuters RE;Sweet & Maxwell Limited,17932,,
Chorley Borough Council,http://statistics.data.gov.uk/id/local-authority/30UE,Capital,Capital,GROW - Commercial & Property,Main Contractor,03007,Capital Expenditure,Capital,QS services for Astley Restoration Project,17/06/2022,0168222,"10,000.00",Capital,Thornber and Walker Ltd,80557,,
Chorley Borough Council,http://statistics.data.gov.uk/id/local-authority/30UE,Homelessness,1075,EARL - Communities,Grants - Tenant Participation,40142,Grants and Subscriptions,5031,Ukrainian Sponsorship 1,23/06/2022,0168246,442.00,Revenue,NAME REDACTED,85423,,
Chorley Borough Council,http://statistics.data.gov.uk/id/local-authority/30UE,Service Management & Support,1009,CUST - Customer & Digital,Grounds Maintenance Contractor,20043,Grounds Maintenance Costs,5013,Invoice 0072,24/06/2022,0168423,390.00,Revenue,Treexpert Tree Care,78580,,
Chorley Borough Council,http://statistics.data.gov.uk/id/local-authority/30UE,Service Management & Support,1009,CUST - Customer & Digital,Tools & Equipment - Maintenance,40005,"Equipment, Furniture & Materia",5023,"Sawtec Roundline 3mm x 223m,Paddy Hopkirk Explo-safe Steel Fuel Can, Contractor Permanent Roadmarking Spray Paint",10/06/2022,0167799,340.88,Revenue,Tudor (UK) Limited t/a Tudor Environmental,78888,,
Chorley Borough Council,http://statistics.data.gov.uk/id/local-authority/30UE,Elections,1012,GOVN - Policy & Governance,Tools & Equipment - Maintenance,40005,"Equipment, Furniture & Materia",5023,annual maintenance of mailpost 125  single sided letter opener,01/06/2022,0167763,506.40,Revenue,Twofold Ltd,77795,,
Chorley Borough Council,http://statistics.data.gov.uk/id/local-authority/30UE,Unapportionable Central OHeads,1009,GOVN - Policy & Governance,Misc Expenses,40200,Miscellaneous Expenses,5034,Healthcare Period cover 01/03/2022,10/06/2022,0168057,"1,366.20",Revenue,UK Healthcare (BDHSC),17241,,
Chorley Borough Council,http://statistics.data.gov.uk/id/local-authority/30UE,Unapportionable Central OHeads,1009,GOVN - Policy & Governance,Misc Expenses,40200,Miscellaneous Expenses,5034,"2 x Face Painter 9am - 12pm. Chorley 10k & Family Run, Chorley Town Centre on Sunday 8 May 2022.",01/06/2022,0167376,300.00,Revenue,UK Media and Events Limited,71221,,
Chorley Borough Council,http://statistics.data.gov.uk/id/local-authority/30UE,Unapportionable Central OHeads,1009,GOVN - Policy & Governance,Exhibitions & Special Events,40158,Miscellaneous Expenses,5034,3 x Face Painters for Picnic in the Park at Astley ParkSunday 5 June at 11am-3pm Including equipment and travel.,24/06/2022,0168313,660.00,Revenue,UK Media and Events Limited,71221,,
Chorley Borough Council,http://statistics.data.gov.uk/id/local-authority/30UE,Tourism,1039,GOVN - Policy & Governance,Misc Expenses,40200,Miscellaneous Expenses,5034,A Taste of Chorley 2022 2 Face Painter 10am - 4pm Saturday 11th June Includes all equipment and travel ,24/06/2022,0168490,"1,200.00",Revenue,UK Media and Events Limited,71221,,
Chorley Borough Council,http://statistics.data.gov.uk/id/local-authority/30UE,Unapportionable Central OHeads,1009,CUST - Customer & Digital,Professional Fees,14011,Direct Employee Expenses,5001,Annual billing mail,01/06/2022,0167703,"1,266.79",Revenue,UKMAIL Ltd (Mail),57758,,
Chorley Borough Council,http://statistics.data.gov.uk/id/local-authority/30UE,Unapportionable Central OHeads,1009,CUST - Customer & Digital,Professional Fees,14011,Direct Employee Expenses,5001,Annual billing mail,01/06/2022,0167717,405.54,Revenue,UKMAIL Ltd (Mail),57758,,
Chorley Borough Council,http://statistics.data.gov.uk/id/local-authority/30UE,Unapportionable Central OHeads,1009,CUST - Customer & Digital,Professional Fees,14011,Direct Employee Expenses,5001,Annual billing mail,01/06/2022,0167961,"1,101.98",Revenue,UKMAIL Ltd (Mail),57758,,
Chorley Borough Council,http://statistics.data.gov.uk/id/local-authority/30UE,Unapportionable Central OHeads,1009,CUST - Customer & Digital,Professional Fees,14011,Direct Employee Expenses,5001,Annual billing mail,01/06/2022,0167968,986.72,Revenue,UKMAIL Ltd (Mail),57758,,
Chorley Borough Council,http://statistics.data.gov.uk/id/local-authority/30UE,Unapportionable Central OHeads,1009,CUST - Customer & Digital,Professional Fees,14011,Direct Employee Expenses,5001,Annual billing mail,01/06/2022,0167973,"1,041.84",Revenue,UKMAIL Ltd (Mail),57758,,
Chorley Borough Council,http://statistics.data.gov.uk/id/local-authority/30UE,Unapportionable Central OHeads,1009,CUST - Customer & Digital,Professional Fees,14011,Direct Employee Expenses,5001,Annual billing mail,01/06/2022,0167981,963.14,Revenue,UKMAIL Ltd (Mail),57758,,
Chorley Borough Council,http://statistics.data.gov.uk/id/local-authority/30UE,Unapportionable Central OHeads,1009,CUST - Customer & Digital,Professional Fees,14011,Direct Employee Expenses,5001,Annual billing mail,01/06/2022,0167983,"2,290.85",Revenue,UKMAIL Ltd (Mail),57758,,
Chorley Borough Council,http://statistics.data.gov.uk/id/local-authority/30UE,Unapportionable Central OHeads,1009,CUST - Customer & Digital,Professional Fees,14011,Direct Employee Expenses,5001,Annual billing mail,01/06/2022,0167984,279.58,Revenue,UKMAIL Ltd (Mail),57758,,
Chorley Borough Council,http://statistics.data.gov.uk/id/local-authority/30UE,Unapportionable Central OHeads,1009,CUST - Customer & Digital,Professional Fees,14011,Direct Employee Expenses,5001,Annual billing mail,01/06/2022,0168005,"1,850.05",Revenue,UKMAIL Ltd (Mail),57758,,
Chorley Borough Council,http://statistics.data.gov.uk/id/local-authority/30UE,Unapportionable Central OHeads,1009,CUST - Customer & Digital,Professional Fees,14011,Direct Employee Expenses,5001,Annual billing mail,10/06/2022,0168013,"28,690.95",Revenue,UKMAIL Ltd (Mail),57758,,
Chorley Borough Council,http://statistics.data.gov.uk/id/local-authority/30UE,Capital,Capital,GOVN - Policy & Governance,Other Contractor,03012,Capital Expenditure,Capital,Two visits to Astley Hall for filming and producing a video on the renovations. 2x trips & music,01/06/2022,0167738,950.00,Capital,Urubu Ltd,77584,,
Chorley Borough Council,http://statistics.data.gov.uk/id/local-authority/30UE,Central Support Services,1009,EARL - Communities,Agency Staff,13000,Direct Employee Expenses,5001,Env Health Contractors,10/06/2022,0166065,712.50,Revenue,Vivid Resourcing Ltd,76938,,
Chorley Borough Council,http://statistics.data.gov.uk/id/local-authority/30UE,Central Support Services,1009,EARL - Communities,Agency Staff,13000,Direct Employee Expenses,5001,Env Health Contractors,10/06/2022,0166803,712.50,Revenue,Vivid Resourcing Ltd,76938,,
Chorley Borough Council,http://statistics.data.gov.uk/id/local-authority/30UE,Central Support Services,1009,EARL - Communities,Agency Staff,13000,Direct Employee Expenses,5001,Env Health Contractors,10/06/2022,0166972,475.00,Revenue,Vivid Resourcing Ltd,76938,,
Chorley Borough Council,http://statistics.data.gov.uk/id/local-authority/30UE,Central Support Services,1009,EARL - Communities,Agency Staff,13000,Direct Employee Expenses,5001,Env Health Contractors,10/06/2022,0167115,804.38,Revenue,Vivid Resourcing Ltd,76938,,
Chorley Borough Council,http://statistics.data.gov.uk/id/local-authority/30UE,Central Support Services,1009,EARL - Communities,Agency Staff,13000,Direct Employee Expenses,5001,Env Health Contractors,10/06/2022,0167126,712.50,Revenue,Vivid Resourcing Ltd,76938,,
Chorley Borough Council,http://statistics.data.gov.uk/id/local-authority/30UE,Central Support Services,1009,EARL - Communities,Agency Staff,13000,Direct Employee Expenses,5001,Env Health Contractors,10/06/2022,0167395,754.88,Revenue,Vivid Resourcing Ltd,76938,,
Chorley Borough Council,http://statistics.data.gov.uk/id/local-authority/30UE,Central Support Services,1009,EARL - Communities,Agency Staff,13000,Direct Employee Expenses,5001,Env Health Contractors,10/06/2022,0167423,720.00,Revenue,Vivid Resourcing Ltd,76938,,
Chorley Borough Council,http://statistics.data.gov.uk/id/local-authority/30UE,Central Support Services,1009,EARL - Communities,Agency Staff,13000,Direct Employee Expenses,5001,Env Health Contractors,10/06/2022,0167424,712.50,Revenue,Vivid Resourcing Ltd,76938,,
Chorley Borough Council,http://statistics.data.gov.uk/id/local-authority/30UE,Central Support Services,1009,GROW - Commercial & Property,Agency Staff,13000,Direct Employee Expenses,5001,Building surveyor fees and mileage for 6 months General Building,01/06/2022,0167536,"1,405.83",Revenue,Vivid Resourcing Ltd,76938,,
Chorley Borough Council,http://statistics.data.gov.uk/id/local-authority/30UE,Private Sector HSG Renewal,1073,EARL - Communities,Agency Staff,13000,Direct Employee Expenses,5001,Agency fees for HIA temp NAME REDACTED - invoice 79046,17/06/2022,0167567,"1,386.90",Revenue,Vivid Resourcing Ltd,76938,,
Chorley Borough Council,http://statistics.data.gov.uk/id/local-authority/30UE,Central Support Services,1009,GROW - Commercial & Property,Agency Staff,13000,Direct Employee Expenses,5001,Building surveyor fees and mileage for 6 months Housing,01/06/2022,0167581,"1,020.00",Revenue,Vivid Resourcing Ltd,76938,,
Chorley Borough Council,http://statistics.data.gov.uk/id/local-authority/30UE,Central Support Services,1009,EARL - Communities,Agency Staff,13000,Direct Employee Expenses,5001,Env Health Contractors,10/06/2022,0167586,761.31,Revenue,Vivid Resourcing Ltd,76938,,
Chorley Borough Council,http://statistics.data.gov.uk/id/local-authority/30UE,Private Sector HSG Renewal,1073,EARL - Communities,Agency Staff,13000,Direct Employee Expenses,5001,Agency fees for HIA Temp NAME REDACTED inv 79651 w/e 8 May 22,17/06/2022,0167678,"1,300.50",Revenue,Vivid Resourcing Ltd,76938,,
Chorley Borough Council,http://statistics.data.gov.uk/id/local-authority/30UE,Development Control,1091,PLAN - Planning & Development,Agency Staff,13000,Direct Employee Expenses,5001,Contract work - Consultant NAME REDACTED.  April 2022 - March 2023,10/06/2022,0168149,"1,642.50",Revenue,Vivid Resourcing Ltd,76938,,
Chorley Borough Council,http://statistics.data.gov.uk/id/local-authority/30UE,Central Support Services,1009,GROW - Commercial & Property,Agency Staff,13000,Direct Employee Expenses,5001,Building surveyor fees and mileage for 6 months General Building,24/06/2022,0168218,"1,482.99",Revenue,Vivid Resourcing Ltd,76938,,
Chorley Borough Council,http://statistics.data.gov.uk/id/local-authority/30UE,Central Support Services,1009,GROW - Commercial & Property,Agency Staff,13000,Direct Employee Expenses,5001,Building surveyor fees and mileage for 6 months Housing,24/06/2022,0168263,903.35,Revenue,Vivid Resourcing Ltd,76938,,
Chorley Borough Council,http://statistics.data.gov.uk/id/local-authority/30UE,Central Support Services,1009,GROW - Commercial & Property,Agency Staff,13000,Direct Employee Expenses,5001,Building surveyor fees and mileage for 6 months General Building,24/06/2022,0168264,"1,451.38",Revenue,Vivid Resourcing Ltd,76938,,
Chorley Borough Council,http://statistics.data.gov.uk/id/local-authority/30UE,Central Support Services,1009,GROW - Commercial & Property,Agency Staff,13000,Direct Employee Expenses,5001,Building surveyor fees and mileage for 6 months Housing,24/06/2022,0168265,"1,333.50",Revenue,Vivid Resourcing Ltd,76938,,
Chorley Borough Council,http://statistics.data.gov.uk/id/local-authority/30UE,Private Sector HSG Renewal,1073,EARL - Communities,Agency Staff,13000,Direct Employee Expenses,5001,Agency costs for HIA temp NAME REDACTED invoice 80549,24/06/2022,0168333,"1,334.25",Revenue,Vivid Resourcing Ltd,76938,,
Chorley Borough Council,http://statistics.data.gov.uk/id/local-authority/30UE,Private Sector HSG Renewal,1073,EARL - Communities,Agency Staff,13000,Direct Employee Expenses,5001,HIA Agency Technical Officer NAME REDACTED invoice number 81035,24/06/2022,0168334,"1,172.70",Revenue,Vivid Resourcing Ltd,76938,,
Chorley Borough Council,http://statistics.data.gov.uk/id/local-authority/30UE,Central Support Services,1009,GROW - Commercial & Property,Agency Staff,13000,Direct Employee Expenses,5001,Building surveyor fees and mileage for 6 months General Building,24/06/2022,0168499,"1,267.43",Revenue,Vivid Resourcing Ltd,76938,,
Chorley Borough Council,http://statistics.data.gov.uk/id/local-authority/30UE,Central Support Services,1009,GROW - Commercial & Property,Agency Staff,13000,Direct Employee Expenses,5001,Building surveyor fees and mileage for 6 months General Building,24/06/2022,0168504,"1,540.60",Revenue,Vivid Resourcing Ltd,76938,,
Chorley Borough Council,http://statistics.data.gov.uk/id/local-authority/30UE,Central Support Services,1009,GROW - Commercial & Property,Agency Staff,13000,Direct Employee Expenses,5001,Building surveyor fees and mileage for 6 months General Building,24/06/2022,0168505,"1,050.00",Revenue,Vivid Resourcing Ltd,76938,,
Chorley Borough Council,http://statistics.data.gov.uk/id/local-authority/30UE,Service Management & Support,1009,CUST - Customer & Digital,Supplies-Grounds Maintenance,40025,"Equipment, Furniture & Materia",5023,Supply and deliver the summer bedding plants 2022,17/06/2022,0168278,"5,751.90",Revenue,Walkers Nurseries Chester Ltd,81322,,
Chorley Borough Council,http://statistics.data.gov.uk/id/local-authority/30UE,Central Support Services,1009,GROW - Commercial & Property,Water - Metered Supplies,20022,Water Services,5009,11/4 to 10/5/22,01/06/2022,0167760,527.85,Revenue,Water-plus,17926,,
Chorley Borough Council,http://statistics.data.gov.uk/id/local-authority/30UE,Democratic Represent and  Mgnt,1007,GROW - Commercial & Property,Water - Metered Supplies,20022,Water Services,5009,16/02/2022 - 04/06/2022 Balance Paid,24/06/2022,0168496,"5,330.57",Revenue,WaterPlus ,85435,,
Chorley Borough Council,http://statistics.data.gov.uk/id/local-authority/30UE,Democratic Represent and  Mgnt,1007,GROW - Commercial & Property,Water - Metered Supplies,20022,Water Services,5009,Fee,10/06/2022,0168064,170.00,Revenue,WaterPlus ,85217,,
Chorley Borough Council,http://statistics.data.gov.uk/id/local-authority/30UE,Democratic Represent and  Mgnt,1007,GROW - Commercial & Property,Water - Metered Supplies,20022,Water Services,5009,14/02/2022 - 02/06/2022,10/06/2022,0168064,258.03,Revenue,WaterPlus ,85217,,
Chorley Borough Council,http://statistics.data.gov.uk/id/local-authority/30UE,Democratic Represent and  Mgnt,1007,GROW - Commercial & Property,Water - Metered Supplies,20022,Water Services,5009,Credit,10/06/2022,0168064,-133.31,Revenue,WaterPlus ,85217,,
Chorley Borough Council,http://statistics.data.gov.uk/id/local-authority/30UE,Open Spaces,1038,GROW - Commercial & Property,Water - Metered Supplies,20022,Water Services,5009,29/10/2021 - 15/02/2022,10/06/2022,0168084,100.28,Revenue,WaterPlus ,85397,,
Chorley Borough Council,http://statistics.data.gov.uk/id/local-authority/30UE,Open Spaces,1038,GROW - Commercial & Property,Water - Metered Supplies,20022,Water Services,5009,Fees,10/06/2022,0168084,170.00,Revenue,WaterPlus ,85397,,
Chorley Borough Council,http://statistics.data.gov.uk/id/local-authority/30UE,Open Spaces,1038,GROW - Commercial & Property,Water - Metered Supplies,20022,Water Services,5009,Balance,10/06/2022,0168084,425.73,Revenue,WaterPlus ,85397,,
Chorley Borough Council,http://statistics.data.gov.uk/id/local-authority/30UE,Central Support Services,1009,GROW - Commercial & Property,Water - Metered Supplies,20022,Water Services,5009,02/05/2022 - 01/06/2022 Balance paid,24/06/2022,0168503,"1,254.91",Revenue,WaterPlus ,84183,,
Chorley Borough Council,http://statistics.data.gov.uk/id/local-authority/30UE,Unapportionable Central OHeads,1009,GROW - Commercial & Property,Water - Metered Supplies,20022,Water Services,5009,13/4 to 12/5/22,24/06/2022,0168354,346.19,Revenue,WaterPlus ,84240,,
Chorley Borough Council,http://statistics.data.gov.uk/id/local-authority/30UE,Unapportionable Central OHeads,1009,GROW - Commercial & Property,Water - Metered Supplies,20022,Water Services,5009,13/3 to 12/4/22,24/06/2022,0168355,439.88,Revenue,WaterPlus ,84240,,
Chorley Borough Council,http://statistics.data.gov.uk/id/local-authority/30UE,Parking Services,1066,GROW - Commercial & Property,Water - Unmetered Supply,20023,Water Services,5009,1/4/22 to 31/3/23,24/06/2022,0168356,375.55,Revenue,WaterPlus ,85396,,
Chorley Borough Council,http://statistics.data.gov.uk/id/local-authority/30UE,Economic Development,1096,GROW - Commercial & Property,Water - Metered Supplies,20022,Water Services,5009,21/11/21 to 12/3/22,17/06/2022,0166973,528.83,Revenue,WaterPlus ,85101,,
Chorley Borough Council,http://statistics.data.gov.uk/id/local-authority/30UE,Economic Development,1096,GROW - Commercial & Property,Water - Metered Supplies,20022,Water Services,5009,13/3 to 21/5/22,17/06/2022,0168217,834.32,Revenue,WaterPlus ,85101,,
Chorley Borough Council,http://statistics.data.gov.uk/id/local-authority/30UE,Recreation & Sport,1037,GROW - Commercial & Property,Water - Metered Supplies,20022,Water Services,5009,03/04/22 - 11/06/2022 balance settled,24/06/2022,0168495,82.88,Revenue,WaterPlus ,84642,,
Chorley Borough Council,http://statistics.data.gov.uk/id/local-authority/30UE,Recreation & Sport,1037,GROW - Commercial & Property,Water - Metered Supplies,20022,Water Services,5009,03/04/2022 - 11/06/2022 balance settled,24/06/2022,0168495,"2,230.07",Revenue,WaterPlus ,84642,,
Chorley Borough Council,http://statistics.data.gov.uk/id/local-authority/30UE,Business Support,1095,GROW - Commercial & Property,Stationery,40050,"Printing, Stationery & General",5026,Red contour digital ballpoint pen with full colour print of Strawberry Fields logo x 1000 ,01/06/2022,0167704,330.00,Revenue,WeBrand4You,68716,,
Chorley Borough Council,http://statistics.data.gov.uk/id/local-authority/30UE,Service Management & Support,1009,CUST - Customer & Digital,Grounds Maintenance Contractor,20043,Grounds Maintenance Costs,5013,2x Beech reductions and 2x Sycamore fells in Walletts Wood.,10/06/2022,0167734,"2,025.00",Revenue,Westfield Tree Services Ltd,17729,,
Chorley Borough Council,http://statistics.data.gov.uk/id/local-authority/30UE,Tourism,1039,GOVN - Policy & Governance,Misc Expenses,40200,Miscellaneous Expenses,5034,Jubilee payment,01/06/2022,0167910,714.16,Revenue,Whittle-le-Woods Community Hall Trust,85294,,
Chorley Borough Council,http://statistics.data.gov.uk/id/local-authority/30UE,Democratic Represent and  Mgnt,1007,EARL - Communities,Supplies-Grounds Maintenance,40025,"Equipment, Furniture & Materia",5023,Cripplegate Lane pond enhancement scheme. start date to be determined after August 2021,10/06/2022,0166798,"9,798.75",Revenue,Wildlife Trust for Lancs Manchester & N Merseyside,20377,,
Chorley Borough Council,http://statistics.data.gov.uk/id/local-authority/30UE,Capital,Capital,GOVN - Policy & Governance,Main Contractor,03007,Capital Expenditure,Capital,Treatment of the following historic floors at Astley Hall: Morning Room floor: Damaged varnish surface,17/06/2022,0167335,"6,680.00",Capital,Wynn Griffiths & Tarr Limited Business,77085,,
Chorley Borough Council,http://statistics.data.gov.uk/id/local-authority/30UE,Capital,Capital,GOVN - Policy & Governance,Main Contractor,03007,Capital Expenditure,Capital,Treatment for corridor outside Morning Room: Strip down failed varnish Tone down colour Re-finish with Osmo Oil,17/06/2022,0168150,610.00,Capital,Wynn Griffiths & Tarr Limited Business,77085,,
Chorley Borough Council,http://statistics.data.gov.uk/id/local-authority/30UE,Culture & Heritage,1036,GOVN - Policy & Governance,Tools & Equipment - Purchase,40003,"Equipment, Furniture & Materia",5023,Astley Hall Museum and Art Gallery Motorola radio Brushmaster coir mat - Ribmaster mat ,17/06/2022,0168252,"1,979.40",Revenue,Yorkshire Purchasing Org,18098,,
